Cogmind - Beta 16.1 @@@ ROGUE MODE // 2026.04.10 @ 01:27:41 Player: alice_fexa Result: Escaped! Performance ------------- Evolutions (9) 4500 Regions Visited (41) 8200 Robots Destroyed (1242) 6210 Value Destroyed (69855) 69855 Prototype IDs (59) 1180 Alien Tech Used (0) 0 Bonus (40035) 40035 TOTAL SCORE: 129980 Bonus ------- High Alert Combat Kills 15414 Follower Combat Kills 5522 Hunted by Unchained 1000 Destroyed Unchained 2000 Entered Garrisons 2800 Used RIF Installer 7500 Network Hubs Disabled 200 Built Enhanced Grunts 300 A7 Reached Mainframe 300 Met R17 at Cetus 500 Met R17 at Research 2000 Win 3000 Friendly Fire -501 Cogmind --------- Core Integrity 1473/1600 Matter 284/300 Energy 827/850 System Corruption 7% Temperature Cool (12) Movement Treading (183) Ox1 Location To Epsilon Eridani Parts ------- > --- POWER (3) -------- Reinforced Quantum Reactor Reinforced Quantum Reactor Reinforced Quantum Reactor > --- PROPULSION (6) --- Armored Heavy Treads DW-4LL's Griptreads DW-4LL's Griptreads > --- UTILITY (12) ----- Advanced Heat Sink Advanced Cooling System (fused) Advanced Cooling System Advanced Cooling System Huge Storage Unit Spectral Analyzer Advanced Target Analyzer Experimental Core Analyzer DW-4LL's Blast Wall > --- WEAPON (4) ------- Helical Railgun Helical Railgun (fused) Multirail (fused) Multirail (fused) > --- INVENTORY (25) --- Light Quantum Reactor Light Quantum Reactor Armored Heavy Treads Biometal Heavy Treads Advanced Coolant Injector Matter Compressor (250) Matter Compressor (250) Advanced Kinecellerator Advanced Weapon Cycler Layered Heavy Armor Plating Graphene Brace Experimental EM Shield Advanced Force Field Improved Remote Force Field Long-range Tractor Beam Railgun Railgun Railgun Railgun Enhanced Gamma Bomb Array Rocket Array Advanced Remote Datajack Peak State ------------ > --- POWER ------------ Reinforced Quantum Reactor Reinforced Quantum Reactor Reinforced Quantum Reactor > --- PROPULSION ------- Armored Heavy Treads DW-4LL's Griptreads DW-4LL's Griptreads > --- UTILITY ---------- Advanced Cooling System Advanced Cooling System Huge Storage Unit Spectral Analyzer Advanced Target Analyzer Experimental Core Analyzer Advanced Kinecellerator Advanced Weapon Cycler DW-4LL's Blast Wall > --- WEAPON ----------- Helical Railgun Helical Railgun Multirail Multirail > --- INVENTORY -------- Light Quantum Reactor Light Quantum Reactor Light Quantum Reactor Armored Heavy Treads Biometal Heavy Treads Advanced Cooling System Advanced Coolant Injector Matter Compressor Matter Compressor Layered Heavy Armor Plating Medium Reflective Plating Experimental EM Shield Advanced Force Field Improved Remote Force Field Long-range Tractor Beam Railgun Railgun Railgun Railgun Enhanced Gamma Bomb Array Rocket Array Advanced Remote Datajack [Rating: 237] Favorites ----------- Power Improved Quantum Reactor Engine Heavy Ion Engine Power Core Enhanced Fission Core Reactor Improved Quantum Reactor Propulsion Armored Heavy Treads Treads Armored Heavy Treads Wheel Armored Wheel Utility Huge Storage Unit Device Advanced Cooling System Storage Huge Storage Unit Processor Core Analyzer Hackware Relay Coupler [NC] Protection Layered Medium Armor Plating Weapon KE Penetrator Energy Gun Medium Laser Energy Cannon Enhanced Nova Cannon Ballistic Gun KE Penetrator Ballistic Cannon Light Cannon Launcher Grenade Launcher Special Weapon Advanced Remote Datajack Impact Weapon Power Maul Slashing Weapon Power Sword Build | -11 -10 -10 -9 -9 -8 -8 -8 -8 -7 -7 -7 -7 -6 -6 -5 -5 -5 -5 -5 -5 -5 -5 -4 -4 -4 -4 -4 -4 -4 -4 -3 -3 -3 -3 -3 -3 -2 -2 -2 -2 -1 ------- Run | Yrd Mat Min Mat Min Mat Gar Mat Gar Fac Gar Sto Gar Fac Gar Fac Was Fac Ext Cet Arc Hub Gar Fac Was Fac Gar Fac Gar Fac Gar Res Gar Res Gar Res Gar Res Gar Res Gar Acc Slots Evolved 18 | . . . 2 . 2 . . . 2 . . . 2 . 2 . . . . . . . 2 . . . . . . . 2 . . . . . 2 . . . 2 Power 2 | . . . . . . . . . . . . . . . . . . . . . . . 1 . . . . . . . 1 . . . . . . . . . . Propulsion 4 | . . . 1 . . . . . 1 . . . . . 1 . . . . . . . 1 . . . . . . . . . . . . . . . . . . Utility 10 | . . . 1 . 1 . . . 1 . . . 1 . 1 . . . . . . . . . . . . . . . 1 . . . . . 2 . . . 2 Weapon 2 | . . . . . 1 . . . . . . . 1 . . . . . . . . . . . . . . . . . . . . . . . . . . . . Parts Attached 547 | 6 15 4 23 5 16 11 17 10 11 19 7 7 5 22 11 10 34 26 9 7 8 7 12 6 2 16 9 10 7 28 18 6 12 14 5 6 10 29 4 24 39 Power 56 | 1 1 1 4 . . 1 . 1 . 1 1 1 . 2 1 2 3 . 1 . 1 . 2 . . . . 1 2 4 2 1 2 2 1 2 . 3 1 5 6 Engine 10 | 1 1 1 4 . . 1 . 1 . 1 . . . . . . . . . . . . . . . . . . . . . . . . . . . . . . . Core 6 | . . . . . . . . . . . 1 . . . 1 . . . . . . . 2 . . . . . . 2 . . . . . . . . . . . Reactor 40 | . . . . . . . . . . . . 1 . 2 . 2 3 . 1 . 1 . . . . . . 1 2 2 2 1 2 2 1 2 . 3 1 5 6 Propulsion 115 | 2 3 . 3 2 5 4 9 3 4 5 . . . 3 3 4 2 9 2 1 2 . 2 3 . 2 3 4 . 8 3 . 2 . . . 1 9 . 2 10 Treads 112 | 2 2 . 3 1 5 4 8 3 4 5 . . . 3 3 4 2 9 2 1 2 . 2 3 . 2 3 4 . 8 3 . 2 . . . 1 9 . 2 10 Leg . | . . . . . . . . . . . . . . . . . . . . . . . . . . . . . . . . . . . . . . . . . . Wheel 3 | . 1 . . 1 . . 1 . . . . . . . . . . . . . . . . . . . . . . . . . . . . . . . . . . Hover . | . . . . . . . . . . . . . . . . . . . . . . . . . . . . . . . . . . . . . . . . . . Flight . | . . . . . . . . . . . . . . . . . . . . . . . . . . . . . . . . . . . . . . . . . . Utility 239 | 1 6 . 9 3 3 5 5 4 5 9 3 2 3 7 4 4 18 9 3 5 4 6 4 3 1 6 4 3 3 10 11 4 7 10 4 2 5 11 2 11 20 Device 96 | . 3 . 3 2 1 . 1 2 2 5 . . 1 4 2 3 9 1 1 4 2 4 3 2 . 2 3 2 1 4 3 1 5 3 1 1 2 3 . 3 7 Storage 12 | 1 3 . 2 . . . . . . . . . . . . . 1 1 . . . . . . . . . . . 1 2 . . . . . . . . 1 . Processor 23 | . . . . . . 2 . . 1 1 . . . . . . 2 . . . 1 1 . . . 1 . 1 . . 3 1 . 4 . . 1 2 . . 2 Hackware 31 | . . . . . . . . . 1 1 1 1 2 1 2 . . . . . . 1 . . 1 1 1 . 2 . 1 . 1 1 2 . 2 4 1 3 1 Protection 77 | . . . 4 1 2 3 4 2 1 2 2 1 . 2 . 1 6 7 2 1 1 . 1 1 . 2 . . . 5 2 2 1 2 1 1 . 2 1 4 10 Artifact . | . . . . . . . . . . . . . . . . . . . . . . . . . . . . . . . . . . . . . . . . . . Weapon 137 | 2 5 3 7 . 8 1 3 2 2 4 3 4 2 10 3 . 11 8 3 1 1 1 4 . 1 8 2 2 2 6 2 1 1 2 . 2 4 6 1 6 3 Energy Gun 4 | 1 . 2 1 . . . . . . . . . . . . . . . . . . . . . . . . . . . . . . . . . . . . . . Energy Cannon 10 | . . . 1 . . . . 1 . . 1 . . . . . 2 . 2 . . . . . . 1 . . . 2 . . . . . . . . . . . Ballistic Gun 100 | 1 3 . 5 . 6 . 3 1 . 4 1 2 1 8 3 . 7 7 1 1 1 1 2 . 1 7 1 2 2 4 2 1 1 1 . 2 3 6 1 6 2 Ballistic Cannon 2 | . 1 . . . . . . . . . . . . . . . . . . . . . . . . . . . . . . . . 1 . . . . . . . Launcher 8 | . 1 1 . . 1 1 . . . . 1 1 . . . . 1 . . . . . . . . . 1 . . . . . . . . . . . . . . Special Weapon 9 | . . . . . . . . . 1 . . 1 . 2 . . . 1 . . . . 2 . . . . . . . . . . . . . 1 . . . 1 Impact Weapon 3 | . . . . . 1 . . . 1 . . . . . . . 1 . . . . . . . . . . . . . . . . . . . . . . . . Slashing Weapon 1 | . . . . . . . . . . . . . 1 . . . . . . . . . . . . . . . . . . . . . . . . . . . . Piercing Weapon . | . . . . . . . . . . . . . . . . . . . . . . . . . . . . . . . . . . . . . . . . . . Special Melee Weapon . | . . . . . . . . . . . . . . . . . . . . . . . . . . . . . . . . . . . . . . . . . . Unidentified Prototypes 39 | . . . 4 . 1 . . . . 1 1 . . . 1 . 7 1 4 1 3 . . . . . . 1 . 1 3 . . 5 . . . . . . 5 Corrupted Parts 6 | . . . . . . . . . . . . . . . . . . . . 2 . . . . . . . . . 1 . . . . . . . . . 3 . System Corruption 26 | . . . . . . . . . . . . . . . . . . . . 9 . . . . . . . . . 2 . . . . . . . . . 15 . Parts Lost 98 | . . 4 4 3 1 6 7 8 1 4 . . . 5 . . 9 4 . . . 2 6 . 1 1 . 1 1 6 . 1 1 . 1 3 5 . 1 4 8 Power 9 | . . 1 . . . . . 1 . . . . . . . . . . . . . . 1 . . . . 1 1 1 . . . . . . . . 1 . 2 Propulsion 22 | . . 1 2 1 . 2 3 3 . . . . . 1 . . 1 1 . . . 1 . . . . . . . 3 . . . . . . 3 . . . . Utility 47 | . . . 2 2 . 3 2 3 . 2 . . . 2 . . 6 3 . . . 1 2 . . 1 . . . 2 . 1 1 . 1 2 1 . . 4 6 Weapon 20 | . . 2 . . 1 1 2 1 1 2 . . . 2 . . 2 . . . . . 3 . 1 . . . . . . . . . . 1 1 . . . . Highest Loss Streak 5 | . . 4 1 2 1 1 4 3 1 2 . . . 3 . . 4 4 . . . 1 4 . 1 1 . 1 1 3 . 1 1 . 1 3 5 . 1 2 2 To Critical Strikes 2 | . . . . . . . 1 . . . . . . 1 . . . . . . . . . . . . . . . . . . . . . . . . . . . Average Backups 22 | 3 13 18 24 24 24 24 24 24 24 24 23 22 22 23 23 21 20 21 21 20 23 24 24 24 22 23 22 23 23 23 22 22 22 22 23 23 22 23 23 24 21 Power 1 | . 1 . 1 2 2 1 1 . 1 1 1 1 1 1 1 1 1 1 1 1 1 1 . 1 2 1 1 . . . . 1 1 1 1 1 1 . 1 1 1 Propulsion 2 | 1 3 3 2 3 4 3 3 2 4 4 2 2 2 1 1 2 1 2 1 . 1 2 1 1 1 1 1 1 1 . 2 2 2 2 1 1 . 1 2 2 1 Utility 9 | . 2 4 5 5 6 7 8 10 9 9 10 9 9 10 10 9 8 8 9 8 10 10 10 12 10 11 10 11 12 11 10 10 11 10 12 11 11 12 11 11 10 Weapon 8 | . 5 10 12 12 11 11 10 9 8 7 8 8 8 8 9 8 7 8 7 8 9 9 8 7 7 7 8 8 8 8 7 7 6 6 7 7 7 6 7 7 6 Tool/Special . | . . . . . . . . . . . . . . . . . . . . . . . . . . . . . . . . . . . . . . . . . . Unused Backups 184 | . 10 . 18 . 8 2 7 1 7 15 . 2 . 5 4 3 9 8 3 1 . 8 2 2 . 8 1 4 . 5 3 1 1 4 1 5 1 11 . 7 17 Power 23 | . 1 . 2 . 1 1 . . . 2 . . . 3 . . . 1 . . . . 1 . . 3 . 1 . 2 . . . 1 . . . . . . 4 Propulsion 24 | . 3 . . . . . 1 . 3 4 . . . 1 1 . . 3 . . . . . . . . . . . . . . . . 1 . . 3 . 1 3 Utility 89 | . 2 . 2 . 3 1 3 1 3 7 . 2 . 1 2 3 2 3 1 1 . 7 1 1 . 5 1 2 . 3 3 1 1 2 . 4 1 6 . 6 8 Weapon 45 | . 4 . 14 . 4 . 3 . 1 2 . . . . 1 . 7 1 2 . . 1 . . . . . 1 . . . . . 1 . 1 . 1 . . 1 Tool/Special 3 | . . . . . . . . . . . . . . . . . . . . . . . . 1 . . . . . . . . . . . . . 1 . . 1 Average Slot Usage (%) 88 | . 95 99 99 99 91 96 99 98 99 96 83 84 84 91 89 87 86 91 93 92 81 94 93 78 83 83 85 88 88 83 84 84 84 81 80 84 85 85 85 86 83 Engine 2 | . 14 13 10 11 9 9 9 8 7 7 6 6 . . . . . . . . . . . . . . . . . . . . . . . . . . . . . Core 1 | . . . . . . . . . . . . . . . . 1 . . . . . . 5 10 10 10 10 6 1 5 1 . . . . . . . . . . Reactor 6 | . . . . . . . . . . . . . 6 6 4 3 5 5 5 5 5 5 4 . . . . 3 8 4 11 14 14 14 14 14 13 13 12 13 11 Treads 18 | . 24 14 22 21 18 26 27 27 29 27 15 15 13 18 19 17 16 22 22 23 23 23 25 19 15 15 16 20 21 16 14 14 14 14 14 14 12 15 17 16 12 Wheel 1 | . 3 14 10 11 9 . . . . . . . . . . . . . . . . . . . . . . . . . . . . . . . . . . . . Device 15 | . 10 14 10 10 9 9 8 8 10 6 6 7 7 12 11 11 12 18 16 15 8 15 11 6 12 15 12 19 11 19 13 18 14 18 14 22 20 18 17 21 22 Storage 5 | . 14 14 10 11 9 9 9 9 7 7 7 7 6 6 5 5 5 5 5 5 5 5 5 5 5 5 5 5 5 5 4 4 4 4 4 4 4 4 4 4 4 Processor 6 | . . . . . . 5 9 9 7 15 15 15 13 13 11 11 7 5 5 5 5 5 5 5 5 5 5 5 5 5 4 4 4 4 4 4 7 8 8 8 10 Hackware 1 | . . . . . . . . . 3 . 3 1 4 . 9 5 2 . . . . 1 5 5 7 . 5 . 8 . 4 . 3 . 3 . 5 3 4 . 1 Protection 6 | . . . 10 10 10 10 8 8 7 6 3 5 5 5 1 4 7 8 11 10 6 10 8 4 5 9 7 5 5 5 9 8 8 5 4 4 4 3 4 3 4 Ballistic Gun 19 | . 17 23 21 15 26 26 26 25 19 20 19 21 15 25 21 17 20 20 22 23 23 22 19 18 19 20 19 20 14 20 19 18 14 18 15 18 16 16 15 17 15 Peak Build Rating 237 | 6 13 13 23 23 40 40 37 37 47 71 70 79 89 87 98 93 113 115 120 124 129 130 141 134 134 139 131 144 128 140 158 165 166 175 171 184 193 185 180 182 237 Average Rating 119 | 4 9 12 20 21 36 36 33 35 44 52 68 70 86 80 89 92 97 102 114 117 118 123 132 127 128 134 125 134 122 127 150 162 156 165 162 175 185 172 177 174 221 On Entrance 100 | . 6 13 13 22 22 40 36 37 37 47 70 70 79 82 79 93 93 112 105 119 119 121 123 113 133 129 131 127 132 121 135 157 163 152 167 167 173 150 184 173 179 Avg Prop Armor Cover (%) 9 | . 11 11 13 14 8 8 . . 5 5 . . . 9 6 6 4 4 . . . 12 14 . . . . . 7 . . . . . . . . 5 . 6 . Naked Turns . | . . . . . . . . . . . . . . . . . . . . . . . . . . . . . . . . . . . . . . . . . . Heaviest Build 271 | 11 52 52 103 100 116 116 121 123 124 128 128 114 119 138 124 122 146 143 146 148 168 147 169 172 148 167 149 156 155 174 188 195 188 196 194 190 190 196 199 191 271 Greatest Support 240 | 40 46 12 69 12 12 62 62 62 88 150 150 150 150 150 172 167 172 172 162 162 162 164 197 220 220 220 220 210 193 225 225 205 205 195 195 195 195 196 196 196 240 Greatest Overweight (x) 9 | . 4 4 8 8 9 9 2 2 1 1 . . . 1 1 . 1 1 . 1 1 1 1 . . . . 1 1 1 . . . 1 . . 1 2 1 1 1 Average Overweight (x) . | . 1 4 7 7 8 1 1 1 1 . . . . . . . . . . . . . . . . . . . . . . . . . . . . . . . . Largest Inventory Capacity 25 | 8 20 20 25 25 25 25 25 25 25 25 25 25 25 25 25 25 25 25 25 25 25 25 25 25 25 25 25 25 25 25 25 25 25 25 25 25 25 25 25 25 25 Average Capacity 24 | 6 13 20 24 25 25 25 25 25 25 25 25 25 25 25 25 25 25 25 25 25 25 25 25 25 25 25 25 25 25 25 25 25 25 25 25 25 25 25 25 25 25 Most Carried 25 | 5 20 20 25 25 25 25 25 25 25 25 25 25 25 25 25 25 25 25 25 25 25 25 25 25 25 25 25 25 25 25 25 25 25 25 25 25 25 25 25 25 25 Average Carried 24 | 3 13 18 24 24 24 24 24 24 24 24 25 24 24 24 24 24 24 24 24 24 24 24 24 24 23 24 24 24 24 24 24 24 24 24 24 24 24 24 24 24 24 Final Capacity 25 | 8 20 20 25 25 25 25 25 25 25 25 25 25 25 25 25 25 25 25 25 25 25 25 25 25 25 25 25 25 25 25 25 25 25 25 25 25 25 25 25 25 25 Final Carried 25 | 5 20 19 25 24 25 25 25 25 24 25 25 25 25 25 25 25 25 25 25 25 25 25 25 24 24 25 25 25 25 25 25 25 23 25 25 25 21 25 25 25 25 Class Distribution -------------------- 62% | Scavenger-Tank 10% | Mutant 8% | Scavenger-Gunner 5% | Tank 5% | Botlord-Tank 3% | Gunner Dominant Class ---------------- Mutant | -10/Materials Mutant | -10/Mines Mutant | -9/Materials Mutant | -9/Mines Tank | -8/Materials Scavenger-Gunner | -8/Garrison Scavenger-Gunner | -8/Materials Scavenger-Gunner | -8/Garrison Gunner | -7/Factory Gunner | -7/Garrison Commander-Gunner | -7/Storage Scavenger-Tank | -7/Garrison Scavenger-Tank | -6/Factory Scavenger-Tank | -6/Garrison Bothacker-Gunner | -5/Factory Scavenger-Tank | -5/Waste Scavenger-Tank | -5/Factory Scavenger-Tank | -5/Extension Scavenger-Tank | -5/Cetus Scavenger-Tank | -5/Archives Scavenger-Tank | -5/Hub_04(d) Scavenger-Tank | -5/Garrison Scavenger-Tank | -4/Factory Scavenger-Tank | -4/Waste Scavenger-Tank | -4/Factory Scavenger-Tank | -4/Garrison Scavenger-Tank | -4/Factory Scavenger-Tank | -4/Garrison Scavenger-Tank | -4/Factory Scavenger-Tank | -4/Garrison Scavenger-Tank | -3/Research Scavenger-Tank | -3/Garrison Tank | -3/Research Scavenger-Gunner | -3/Garrison Scavenger-Tank | -3/Research Scavenger-Tank | -3/Garrison Scavenger-Tank | -2/Research Botlord-Tank | -2/Garrison Scavenger-Tank | -2/Research Scavenger-Tank | -2/Garrison Scavenger-Tank | -1/Access Resources | -11 -10 -10 -9 -9 -8 -8 -8 -8 -7 -7 -7 -7 -6 -6 -5 -5 -5 -5 -5 -5 -5 -5 -4 -4 -4 -4 -4 -4 -4 -4 -3 -3 -3 -3 -3 -3 -2 -2 -2 -2 -1 ----------- Run | Yrd Mat Min Mat Min Mat Gar Mat Gar Fac Gar Sto Gar Fac Gar Fac Was Fac Ext Cet Arc Hub Gar Fac Was Fac Gar Fac Gar Fac Gar Res Gar Res Gar Res Gar Res Gar Res Gar Acc Matter Collected 58118 | 267 575 198 1120 253 1023 895 1029 1168 467 1173 271 580 257 1436 897 440 3328 1902 358 474 946 1249 2251 1001 696 1421 391 2731 1400 2621 918 1542 444 1920 806 2170 883 2610 685 2968 10354 Remotely 23416 | . . . . 64 . . . . 54 33 . 90 . 313 82 . 1858 1352 40 168 542 272 1251 238 372 411 . 1264 723 554 304 331 82 688 482 847 653 977 205 1125 8041 Salvage Created 78457 | 103 451 257 1660 107 1692 1235 1505 1080 552 1530 315 995 306 1490 934 1519 5030 3182 215 340 1076 1687 2426 1447 1096 1644 397 2296 1669 3482 1070 2649 635 3101 1148 2865 1241 2331 742 3706 17251 Parts 3508 | 4 26 18 107 5 88 66 83 60 27 70 14 47 13 74 50 33 240 146 5 23 64 76 107 28 38 94 17 88 84 154 46 138 37 127 63 135 68 112 32 146 655 Haulers Intercepted 22 | . 1 . 5 . 4 . 3 . 1 . 2 . . . . . . . . . . . . . . . . . . . 1 . . . . . . . . . 5 Recyclers Shooed 25 | . . . 1 . 1 . . . 1 . . . . . 1 . . . . . . . 3 . . . . . 2 . . . 1 . 1 . . . 2 . 12 Parts Field Recycled . | . . . . . . . . . . . . . . . . . . . . . . . . . . . . . . . . . . . . . . . . . . Retrieved Matter . | . . . . . . . . . . . . . . . . . . . . . . . . . . . . . . . . . . . . . . . . . . Parts Self-Destructed . | . . . . . . . . . . . . . . . . . . . . . . . . . . . . . . . . . . . . . . . . . . Prevented . | . . . . . . . . . . . . . . . . . . . . . . . . . . . . . . . . . . . . . . . . . . Parts Restored . | . . . . . . . . . . . . . . . . . . . . . . . . . . . . . . . . . . . . . . . . . . Kills | -11 -10 -10 -9 -9 -8 -8 -8 -8 -7 -7 -7 -7 -6 -6 -5 -5 -5 -5 -5 -5 -5 -5 -4 -4 -4 -4 -4 -4 -4 -4 -3 -3 -3 -3 -3 -3 -2 -2 -2 -2 -1 ------- Run | Yrd Mat Min Mat Min Mat Gar Mat Gar Fac Gar Sto Gar Fac Gar Fac Was Fac Ext Cet Arc Hub Gar Fac Was Fac Gar Fac Gar Fac Gar Res Gar Res Gar Res Gar Res Gar Res Gar Acc Combat Hostiles Destroyed 1033 | . 11 7 30 13 24 28 31 28 10 23 3 24 5 33 16 6 73 44 3 1 14 30 29 6 11 32 2 31 26 48 13 44 9 39 13 42 16 32 6 48 129 Guns 896 | . 9 4 30 3 20 24 20 21 7 9 3 16 2 27 16 6 63 35 3 1 14 30 27 6 8 32 2 31 25 36 13 32 7 39 12 42 14 32 6 48 121 Cannons 6 | . 2 . . . . . . 1 . . . . . . . . 2 . . . . . . . . . . . . . . . . . 1 . . . . . . AOE 111 | . . 3 . 10 4 4 11 6 3 14 . 8 3 6 . . 8 4 . . . . 2 . 3 . . . . 12 . 6 2 . . . . . . . 2 Classes Destroyed 26 | 2 5 1 3 2 . 2 1 1 1 . . . . 2 . 1 . 1 . . . . 1 . . . . 1 . . . 1 . 1 . . . . . . . Worker 60 | . . . 1 . 3 . 2 . . . 1 . . . 3 . 3 . . . 3 . 4 . 1 . . . 1 . . . 2 . 1 . . . 1 . 34 Builder 46 | . . 2 1 . 1 . 1 . . . . . . . 1 . 9 3 . . 1 . 1 . . . . . 2 . . . . . 2 . 1 . 1 . 20 Tunneler 8 | 1 . . . . 1 . 1 . . . . . 1 . . . . 2 . . . . . . . . 1 . . . . . . . . . 1 . . . . Hauler 22 | . 1 . 5 . 4 . 3 . 1 . 2 . . . . . . . . . . . . . . . . . . . 1 . . . . . . . . . 5 Recycler 76 | 1 . 2 3 . 3 . 2 . 1 . . . 1 . 1 . 3 . . . . . 4 . 3 . 2 . 1 . . . 2 . 1 . . . 2 . 44 Mechanic 7 | . 1 . . . . . 1 . . . . . . . . . 1 1 . . . . . . . . . . . . . . . . . . . . . . 3 Operator 10 | . . . . . . . . . 1 . . . . . . . . . . 8 1 . . . . . . . . . . . . . . . . . . . . Watcher 23 | . 1 . 5 . 4 . 3 . . . 1 . . . 1 . 2 1 . . 1 1 . . . . . . . . . . . . . . . . . . 3 Swarmer 176 | . 4 6 10 . 1 4 8 5 . 13 . 8 3 7 8 . . 2 . . . 9 3 . . 14 . . 11 14 . 9 6 2 . 10 . 7 . 7 5 Cutter 5 | . . . . . . . . . . . . . . . . . . . . . . . . . . . . . . . . 3 . . . . . . . . 2 Saboteur 8 | . . . . . . . . . . . . . . . . . . 1 . . . . 2 . . . . . . . . 3 . . . . . 1 . . 1 Grunt 366 | . 7 . 11 1 16 10 15 12 7 4 1 12 . 15 3 . 41 18 . . 6 12 6 . 7 3 . 13 5 16 4 16 . 22 5 12 5 2 1 22 36 Brawler 24 | . . . . 1 1 . 1 1 1 1 . . . 1 . . 3 2 . . . . 2 . . . . 2 . . . . . . . 1 . 2 . . 5 Duelist 32 | . . . 1 . . 1 2 . 1 . . . . . . . . 4 . . . . 1 . . . . 1 . 4 . . . . . . . 3 2 2 10 Protector 12 | . . . . . . . 1 1 . 1 . . . . . . 1 1 . . 1 . . . . . . . . . . . . . . . . . . . 6 Sentry 110 | . . . 8 . 6 5 4 . . 4 2 2 2 5 1 . 7 10 . 1 3 5 . . 1 4 1 4 5 5 1 6 . 1 2 5 . 5 1 4 . Demolisher 4 | . . . . . . . . 1 . . . . . . . . . 2 . . . . . . . . . . . . 1 . . . . . . . . . . Specialist 20 | . . . . . . . . . . . . . . 2 . . 4 1 . . . . . . . . . . . . . . . 4 . 5 2 2 . . . Hunter 73 | . . . . . . 5 . 2 . . . . . 2 . . 6 1 . . . 2 4 . . 5 . 4 3 2 3 4 . . . 2 2 5 . 7 14 Programmer 151 | . . . . . . 3 . 6 1 . . 3 . . 4 . 11 1 . . . 1 9 . 3 5 1 4 4 5 2 3 3 7 6 6 7 5 2 5 44 Heavy 4 | . . . . . . . . . . . . . . . . . . . . . . . 1 . . . . . . . . . . . . . . . . . 3 Behemoth 14 | . . . . . . . . . . . . . . 1 . . . 1 . . 1 1 . . . 1 . 1 . 2 . . . 1 . 1 . 1 . 1 2 Compactor 12 | . . . . . . . . . . . . . . . . 6 . . . . . . . 6 . . . . . . . . . . . . . . . . . Cetus Guard 3 | . . . . . . . . . . . . . . . . . . . 3 . . . . . . . . . . . . . . . . . . . . . . Lightning 3 | . . . . . . . . . . . . . . . . . . . . . 3 . . . . . . . . . . . . . . . . . . . . Striker 4 | . . . . . . . . . . . . . . . . . . . . . . . . . . . . 2 . . 2 . . . . . . . . . . Executioner 2 | . . . . . . . . . . . . . . . . . . . . . . . . . . . . . . . . . . 2 . . . . . . . Assembled 11 | . . . . 11 . . . . . . . . . . . . . . . . . . . . . . . . . . . . . . . . . . . . . Thug 1 | . . . . . . . . . . . . . . . . . . 1 . . . . . . . . . . . . . . . . . . . . . . . Infiltrator 1 | . . . . . . . . . . . . . . . 1 . . . . . . . . . . . . . . . . . . . . . . . . . . Best Kill Streak 16 | 1 3 3 4 6 5 10 16 4 6 6 2 7 3 7 6 1 9 11 2 3 14 6 8 2 8 7 2 5 6 8 4 6 6 14 7 12 9 7 3 6 13 Combat Bots Only 14 | . 3 3 4 6 4 10 12 4 5 6 1 7 3 7 5 1 8 10 2 1 10 6 6 2 7 7 2 5 4 8 4 6 4 14 6 12 7 7 3 6 8 Max Kills in Single Turn 5 | 1 1 2 2 2 3 2 4 3 3 3 2 5 1 2 2 1 5 5 1 2 2 3 2 1 3 2 1 1 2 4 1 2 2 2 2 2 2 3 2 2 3 Gunslinging 2 | . . . . . . 1 1 1 . . . . . 1 . . 1 1 . . . 1 1 . . 1 . . 1 1 . . 1 1 . 1 . 1 . 1 2 Exploded 5 | . . 2 . 2 3 2 4 3 2 3 . 5 1 2 . . 3 2 . . . . 2 . 3 . . . . 4 . 2 2 . . . . . . . 1 Melee . | . . . . . . . . . . . . . . . . . . . . . . . . . . . . . . . . . . . . . . . . . . Uniques/NPCs Destroyed 3 | . . 1 . . . . . . . . . . . . . . . . . . . . 1 . . . . . . . . . . . . . . . . . 1 YI-UF0 (-10/Mines) BL-1NK (-4/Factory) DW-4LL (-1/Access) Combat | -11 -10 -10 -9 -9 -8 -8 -8 -8 -7 -7 -7 -7 -6 -6 -5 -5 -5 -5 -5 -5 -5 -5 -4 -4 -4 -4 -4 -4 -4 -4 -3 -3 -3 -3 -3 -3 -2 -2 -2 -2 -1 -------- Run | Yrd Mat Min Mat Min Mat Gar Mat Gar Fac Gar Sto Gar Fac Gar Fac Was Fac Ext Cet Arc Hub Gar Fac Was Fac Gar Fac Gar Fac Gar Res Gar Res Gar Res Gar Res Gar Res Gar Acc Hostile Shots Fired 4889 | . 43 43 114 19 72 136 90 161 27 227 15 55 30 209 46 . 239 117 13 1 73 68 251 . 105 158 4 201 96 180 43 168 32 213 69 340 233 97 45 219 637 Missed 1261 | . 14 16 20 4 24 41 29 52 6 89 6 15 9 43 13 . 38 25 4 . 14 16 67 . 24 34 . 48 26 53 9 40 6 42 21 75 98 26 9 55 150 Hits 3628 | . 29 27 94 15 48 95 61 109 21 138 9 40 21 166 33 . 201 92 9 1 59 52 184 . 81 124 4 153 70 127 34 128 26 171 48 265 135 71 36 164 487 Melee 65 | . . . 7 3 . 1 1 . . . . . . . . . 2 1 . . . . 11 . . . . 14 . 1 4 1 . . . . 2 2 8 4 3 Projectile 3563 | . 29 27 87 12 48 94 60 109 21 138 9 40 21 166 33 . 199 91 9 1 59 52 173 . 81 124 4 139 70 126 30 127 26 171 48 265 133 69 28 160 484 AOE 45 | . . 17 . . . . . 8 . 3 1 1 . . . . . 10 . . . . . . . . . . . . 1 3 . . . . . . . . 1 Critical Strikes 159 | . . . 1 . 4 2 3 7 1 . . . . 5 . . 12 4 3 . 6 1 12 . 7 8 . 8 4 7 3 6 . 6 2 7 6 2 2 8 22 Actively Blocked 28 | . . . . . . . . . . . . . . . . . . . . . . . . . . . . . . . . 6 . 3 . . . . . . 19 Part Disruptions 10 | . . . . . . . . . 1 . . . . . . . . . . . . . 1 . 1 . . . . . . . 1 . . 1 1 1 1 . 2 Damage Taken 47718 | . 318 650 1260 373 748 1346 930 1760 329 1231 138 710 172 2024 592 . 3740 2498 234 27 833 894 2849 . 893 1454 89 2271 856 1587 513 1594 263 1842 528 2298 878 840 473 1904 5779 Core 2448 | . 60 126 90 53 59 107 104 186 18 147 3 107 27 38 36 . 120 27 12 . 4 106 176 . 7 61 . 60 95 119 19 31 6 80 . 75 55 53 13 41 127 Absorbed by Shields 18206 | . . . . . . . . . . . . . . . . . 546 191 156 . . 96 1252 . 248 999 . 1137 363 1013 432 1227 55 1634 212 1899 521 813 334 1945 3133 Reduced by Siege Mode 2761 | . . . . . . . . . . . . 5 . 134 37 . 155 80 4 . 10 23 57 . 105 112 . 312 43 54 34 86 11 235 12 264 32 74 35 88 759 Ignored by Resistances 9337 | . . . . . . . 10 159 . 225 16 . . 115 42 . 73 52 . . 921 52 567 . 489 325 . 91 182 196 18 210 269 454 358 1258 557 278 159 189 2072 Regen/Repaired (Parts) 3047 | . . . 499 . . . 26 . . . . 129 15 . . . 642 46 52 . . 104 441 115 117 350 47 104 360 . . . . . . . . . . . . Core Remaining (%) 67 | 100 . 25 . 64 . . . 17 . . . 60 . 92 . . . . . . . 69 . . . . . . . 54 . . . . . 83 . . . 88 92 Volleys Fired 2751 | 7 53 19 118 22 73 85 60 69 24 85 16 37 13 70 32 26 148 80 14 19 41 75 95 38 32 76 13 111 78 139 34 77 24 91 43 83 41 81 35 127 347 Largest 4 | 2 2 2 2 2 3 3 3 3 3 3 3 3 4 4 4 3 4 4 4 4 4 4 4 4 4 4 4 4 4 4 4 4 4 4 4 4 4 4 4 4 4 Hottest 197 | 70 70 90 68 46 84 84 84 119 84 81 81 90 113 116 126 96 197 132 129 136 136 136 136 134 134 132 134 136 179 134 137 137 137 137 188 149 149 146 143 143 166 Shots Fired 8238 | 14 105 36 235 30 215 188 165 172 58 175 31 89 29 207 104 76 473 268 55 76 164 221 325 120 104 235 36 355 177 390 130 260 55 295 112 298 125 281 83 443 1228 Gun 7818 | 14 97 33 235 16 213 184 159 158 51 158 23 82 22 199 98 75 425 254 55 76 164 209 310 114 99 226 32 345 139 377 129 251 45 277 94 298 115 271 67 443 1186 Cannon 175 | . 7 . . . . . . 10 . . 1 . . . . . 37 6 . . . 12 5 . . 5 . . 24 5 . . 8 16 10 . 5 . 5 . 19 Launcher 110 | . 1 3 . 14 2 4 6 4 2 14 1 4 3 3 . . 2 7 . . . . 1 . 1 2 . 3 2 8 . 9 1 . . . 3 . 1 . 9 Special 135 | . . . . . . . . . 5 3 6 3 4 5 6 1 9 1 . . . . 9 6 4 2 4 7 12 . 1 . 1 2 8 . 2 10 10 . 14 Kinetic 7770 | 7 66 24 234 16 213 184 159 158 51 158 23 82 22 199 98 75 425 254 55 76 164 209 310 114 99 226 32 345 139 377 129 251 45 277 94 298 115 271 67 443 1186 Thermal 203 | 7 38 . . . . . . . . . . . . . . . 37 7 . . . 12 5 . . 5 . . 24 5 . . 8 16 10 . 5 . 5 . 19 Explosive 72 | . 1 3 . 14 2 4 6 4 2 14 1 4 3 3 . . 1 . . . . . 1 . 1 . . . . 4 . 3 1 . . . . . . . . Electromagnetic 59 | . . 9 1 . . . . 10 . . 1 . . . . . 1 7 . . . . . . . 2 . 3 2 4 . 6 . . . . 3 . 1 . 9 Robot Hit Streak 61 | 4 9 4 17 11 35 47 61 11 10 31 11 12 20 24 20 16 39 31 37 9 25 20 28 42 26 28 8 25 20 43 16 34 18 40 23 28 14 49 24 35 36 Robot Miss Streak 11 | 1 3 2 5 4 3 2 3 3 3 3 1 2 1 3 4 1 2 5 1 3 6 3 3 2 3 4 2 3 4 6 4 4 2 5 3 5 6 3 5 3 11 Penetration Max 2 | . . . . . . . . 1 . 1 . 1 . 1 1 . 1 1 1 1 1 1 1 . 1 1 . 1 1 1 1 1 1 2 1 1 2 2 1 1 2 Secondary Targets 204 | . . . 3 . 1 5 4 6 2 3 . 1 . 8 4 . 12 12 1 . 2 5 11 2 . 5 . 8 5 5 3 10 2 12 4 11 2 5 1 8 41 Max Gunslinging Chain 2 | . . . 1 . 1 1 1 1 1 1 . 1 . 1 1 . 1 1 1 . 1 2 1 1 . 2 . 1 1 1 1 1 1 1 1 2 1 1 1 1 2 Shots Hit Robots 5750 | 9 67 18 164 13 161 117 114 108 38 131 20 67 22 152 71 61 320 187 44 50 114 135 239 101 80 142 19 257 100 265 86 194 36 233 78 199 82 207 53 315 881 Core Hits 3197 | 3 25 14 69 27 74 52 83 50 28 82 9 58 11 114 51 18 214 137 17 25 52 65 100 22 39 75 10 100 62 173 40 120 25 122 36 82 37 81 24 156 615 Critical Kills 119 | . . . 2 . . 2 . 1 . 3 1 . . . 2 2 6 4 1 3 7 5 7 1 2 2 . 4 4 4 2 4 1 3 1 1 1 2 . 2 39 Critical Parts Destroyed 143 | . . . 2 . . . 1 2 1 3 . . . 3 1 . 5 7 2 1 5 9 16 . 2 . . 6 2 10 1 2 1 8 . 5 3 1 2 5 37 Critical Strikes 296 | . 8 . 4 . . 2 1 3 1 6 1 . . 3 3 5 11 12 3 5 13 14 25 7 4 2 . 13 6 14 3 7 2 13 1 9 4 3 2 7 79 Burn 8 | . 8 . . . . . . . . . . . . . . . . . . . . . . . . . . . . . . . . . . . . . . . . Destroy 288 | . . . 4 . . 2 1 3 1 6 1 . . 3 3 5 11 12 3 5 13 14 25 7 4 2 . 13 6 14 3 7 2 13 1 9 4 3 2 7 79 Melee Attacks 55 | . . . . . 1 . . . 4 18 . 14 7 3 3 . 5 . . . . . . . . . . . . . . . . . . . . . . . . Impact 46 | . . . . . 1 . . . 4 18 . 14 . 1 3 . 5 . . . . . . . . . . . . . . . . . . . . . . . . Slashing 9 | . . . . . . . . . . . . . 7 2 . . . . . . . . . . . . . . . . . . . . . . . . . . . Piercing . | . . . . . . . . . . . . . . . . . . . . . . . . . . . . . . . . . . . . . . . . . . Sneak Attacks 4 | . . . . . . . . . . . . . 2 1 . . 1 . . . . . . . . . . . . . . . . . . . . . . . . Combat Hostiles . | . . . . . . . . . . . . . . . . . . . . . . . . . . . . . . . . . . . . . . . . . . Follow-up Attacks . | . . . . . . . . . . . . . . . . . . . . . . . . . . . . . . . . . . . . . . . . . . Damage Inflicted 169113 | 92 756 370 2548 655 3252 2663 3233 3236 1030 3417 318 2077 670 3698 1814 1584 10290 7034 1256 1297 3169 3534 6261 2568 2332 3503 416 6160 2652 7929 2239 6467 1225 7596 2368 6409 2911 5934 1660 8729 33761 Guns 150257 | 92 691 273 2548 168 3019 2285 1963 2450 645 2144 287 1183 281 3085 1806 1584 7751 5145 1256 1297 3169 3397 5905 2568 2007 3269 416 5998 2323 6744 2239 4828 953 6905 2262 6409 2587 5934 1575 8729 32087 Cannons 2074 | . 65 . . . . . . 208 . . 31 . . . . . 454 . . . . 118 41 . . . . . 121 . . . 43 691 42 . . . . . 260 Explosions 16084 | . . 97 . 487 230 378 1256 578 385 1273 . 736 235 492 8 . 1972 1889 . . . . 301 . 325 234 . 162 208 1164 . 1639 229 . . . 324 . 68 . 1414 Melee 546 | . . . . . . . . . . . . 158 154 121 . . 113 . . . . . . . . . . . . . . . . . . . . . . . . Ramming 152 | . . . . . 3 . 14 . . . . . . . . . . . . . . 19 14 . . . . . . 21 . . . . 64 . . . 17 . . Kinetic 149823 | 30 420 195 2525 168 3019 2285 1963 2450 645 2144 287 1183 281 3085 1806 1584 7751 5145 1256 1297 3169 3397 5905 2568 2007 3269 416 5998 2323 6744 2239 4828 953 6905 2262 6409 2587 5934 1575 8729 32087 Thermal 2588 | 62 336 . . . . . . 42 . . . . . . . . 567 . . . . 118 134 . . . . . 121 . . . 43 691 42 . . . . . 432 Explosive 10153 | . . 97 . 487 230 378 1256 536 385 1273 . 736 235 492 . . 1743 . . . . . 208 . 325 . . . . 853 . 690 229 . . . . . . . . Electromagnetic 5851 | . . 78 23 . . . . 208 . . 31 . . . 8 . 116 1889 . . . . . . . 234 . 162 208 311 . 949 . . . . 324 . 68 . 1242 Impact 392 | . . . . . . . . . . . . 158 . 121 . . 113 . . . . . . . . . . . . . . . . . . . . . . . . Slashing 154 | . . . . . . . . . . . . . 154 . . . . . . . . . . . . . . . . . . . . . . . . . . . . Piercing . | . . . . . . . . . . . . . . . . . . . . . . . . . . . . . . . . . . . . . . . . . . Highest Corruption 26 | . . . . . 2 4 4 9 . . . 1 . . . . 13 6 6 7 2 2 6 10 13 15 16 16 17 23 . 1 4 6 10 16 8 10 11 26 7 Average Corruption 7 | . . . . . 2 3 4 7 . . . 1 . . . . 5 4 6 4 1 2 2 8 11 14 15 16 16 22 . 1 1 4 6 14 3 9 10 11 4 Corruption Purged 25 | . . . . . . . . . . . . . . . . . 10 . . 15 . . . . . . . . . . . . . . . . . . . . . Corruption Blocked . | . . . . . . . . . . . . . . . . . . . . . . . . . . . . . . . . . . . . . . . . . . Effects 1361 | . . . . . 9 37 29 52 . . . 2 . . . . 71 57 12 6 5 30 21 19 16 79 22 93 58 143 . 8 8 43 27 98 6 114 20 91 185 Message Errors 302 | . . . . . 6 6 4 10 . . . . . . . . 12 12 5 . 2 7 4 5 3 22 5 19 14 32 . 1 2 12 6 24 . 22 4 18 45 Matter Fused 332 | . . . . . 1 9 9 12 . . . 2 . . . . 11 17 . 6 1 6 7 4 5 18 5 18 16 31 . 4 2 9 9 21 3 40 6 19 41 Heat Flow Errors 141 | . . . . . . 5 2 5 . . . . . . . . 8 7 1 . 1 2 2 3 1 7 2 10 7 12 . 3 1 5 4 10 1 5 4 11 22 Energy Discharges 139 | . . . . . . 4 6 6 . . . . . . . . 8 3 1 . 1 5 3 1 2 7 4 6 5 11 . . 1 1 4 11 1 8 . 13 27 Parts Rejected 21 | . . . . . . 1 1 1 . . . . . . . . 2 . . . . . . 1 1 1 . 3 2 3 . . . . . 1 . 2 . 1 1 Parts Fused 15 | . . . . . . 1 . 2 . . . . . . . . . . . . . . . 1 . 1 . . . 2 . . . . . . . 3 . 2 3 Data Loss (minor) 155 | . . . . . 1 5 3 6 . . . . . . . . 16 13 3 . . 6 3 . 1 9 2 10 4 13 . . 1 4 1 14 . 13 2 5 20 Data Loss (major) 60 | . . . . . 1 . . 2 . . . . . . . . 6 1 1 . . 2 1 1 . 5 . 8 2 8 . . . 1 . 3 . 9 . 4 5 Misfires 52 | . . . . . . 3 1 5 . . . . . . . . 4 1 . . . 2 . 1 . . 3 4 3 5 . . . 1 . 1 . 4 2 5 7 Alerts 28 | . . . . . . 1 . 2 . . . . . . . . 2 1 . . . . 1 . 1 2 . 1 2 2 . . . 5 1 . . 2 . 2 3 Misdirections 9 | . . . . . . . . . . . . . . . . . . . . . . . . . . 1 . 2 . 1 . . . . . . . 2 1 2 . Weapon Failures 107 | . . . . . . 2 3 1 . . . . . . . . 2 2 1 . . . . 2 2 6 1 12 3 23 . . 1 5 2 13 1 4 1 9 11 Overload Shots . | . . . . . . . . . . . . . . . . . . . . . . . . . . . . . . . . . . . . . . . . . . Overflow Damage 450 | . . . . . . 24 . 50 . 111 . 23 32 12 . . 119 . . . . . 23 . . . . . 2 . . 10 . 20 24 . . . . . . Projectiles 29 | . . . . . . . . . . . . . . . . . 7 . . . . . . . . . . . 2 . . . . 20 . . . . . . . Explosions 274 | . . . . . . 24 . 50 . 111 . 11 . 6 . . 39 . . . . . 23 . . . . . . . . 10 . . . . . . . . . Melee 147 | . . . . . . . . . . . . 12 32 6 . . 73 . . . . . . . . . . . . . . . . . 24 . . . . . . Knockbacks 4 | . 1 . . . . . . . . . . 1 . 1 . . . . . . . . 1 . . . . . . . . . . . . . . . . . . Impact 3 | . . . . . . . . . . . . 1 . 1 . . . . . . . . 1 . . . . . . . . . . . . . . . . . . Kinetic 1 | . 1 . . . . . . . . . . . . . . . . . . . . . . . . . . . . . . . . . . . . . . . . Secondary . | . . . . . . . . . . . . . . . . . . . . . . . . . . . . . . . . . . . . . . . . . . Self-Inflicted Damage 1086 | . . 27 34 129 1 34 64 35 . 71 . 23 . 28 25 . 84 190 . . . . . . . 24 . 21 . 167 . 129 . . . . . . . . . Shots 53 | . . 1 1 5 . 1 3 1 . 4 . 1 . 2 1 . 2 12 . . . . . . . 2 . 2 . 5 . 10 . . . . . . . . . Rammed 10 | . . . . . 1 . 3 . . . . . . . . . . . . . . 2 1 . . . . . . 1 . . . . 1 . . . 1 . . Targets Rammed 10 | . . . . . 1 . 3 . . . . . . . . . . . . . . 2 1 . . . . . . 1 . . . . 1 . . . 1 . . Kicked . | . . . . . . . . . . . . . . . . . . . . . . . . . . . . . . . . . . . . . . . . . . Crushed . | . . . . . . . . . . . . . . . . . . . . . . . . . . . . . . . . . . . . . . . . . . Highest Temperature 492 | 80 130 . 387 13 134 238 161 254 4 24 . 4 10 96 . . 222 167 78 175 165 276 230 492 70 228 167 244 233 243 90 233 140 262 227 225 201 219 182 272 376 Average Temperature 58 | 37 41 . 115 9 33 73 56 48 3 6 . 4 5 27 . . 41 49 15 58 53 28 59 140 27 76 66 40 93 42 28 52 45 72 73 51 50 30 73 64 74 Received Heat Transfer 7163 | . 138 . 351 52 450 324 378 387 117 318 54 183 48 525 9 . 616 320 . . 120 179 271 . 202 112 9 197 63 207 38 191 . 196 80 448 12 76 29 232 231 Effects 8 | . . . 1 . . . . . . . . . . . . . . . . . . . . 2 . 1 . . . . . . . . . . . . . 3 1 Shutdowns 1 | . . . . . . . . . . . . . . . . . . . . . . . . 1 . . . . . . . . . . . . . . . . . Energy Bleed 1 | . . . . . . . . . . . . . . . . . . . . . . . . 1 . . . . . . . . . . . . . . . . . Interference 5 | . . . . . . . . . . . . . . . . . . . . . . . . . . 1 . . . . . . . . . . . . . 3 1 Damage (minor) 1 | . . . 1 . . . . . . . . . . . . . . . . . . . . . . . . . . . . . . . . . . . . . . Siege Activations 202 | . . . . . . . . . . . . 5 . 12 6 . 27 10 2 . 3 11 9 . 3 8 . 12 2 15 5 14 2 10 2 9 5 8 1 7 14 Total Turns 8760 | . . . . . . . . . . . . 54 . 228 71 . 446 165 30 . 145 120 253 . 77 179 . 251 36 217 50 175 23 159 20 127 81 156 15 230 5452 Longest Duration 1960 | . . . . . . . . . . . . 23 . 35 25 . 54 42 25 . 113 45 61 . 38 50 . 45 32 32 22 33 13 66 10 64 40 59 15 107 1960 Martial Activations . | . . . . . . . . . . . . . . . . . . . . . . . . . . . . . . . . . . . . . . . . . . Shielding Activations . | . . . . . . . . . . . . . . . . . . . . . . . . . . . . . . . . . . . . . . . . . . Robots Disrupted 4 | . . . . . . . . . . . . . . . . . . 1 . . . . . . . 1 . . . . . 1 . . . . . . 1 . . Combat Hostiles 4 | . . . . . . . . . . . . . . . . . . 1 . . . . . . . 1 . . . . . 1 . . . . . . 1 . . Robots Corrupted 20 | . . . . . . . . . . . . . . . . . . 5 . . . . . . . . . . 1 . . 6 . . . . 2 . . . 6 Combat Hostiles 20 | . . . . . . . . . . . . . . . . . . 5 . . . . . . . . . . 1 . . 6 . . . . 2 . . . 6 Parts Fried 45 | . . . . . . . . . . . . . . 1 . . 3 11 . . . . . . . 1 . . 2 . . 7 . . . . 2 . . . 18 Impact Corruptions 5 | . . . . . . . . . . . . 1 . 1 . . 2 . . . . . . . . . . . . . . . . . 1 . . . . . . Robots Melted . | . . . . . . . . . . . . . . . . . . . . . . . . . . . . . . . . . . . . . . . . . . Combat Hostiles . | . . . . . . . . . . . . . . . . . . . . . . . . . . . . . . . . . . . . . . . . . . Parts Melted 13 | 1 3 . . . . . . . . . 1 2 . . . . 2 . . . . . . . 2 . . . 1 . . . . 1 . . . . . . . Heat Transferred 3950 | 185 1591 . . . . . . 50 . . . . . . . . 800 . . . . 111 87 . . . . . 111 . . . 37 592 37 . . . . . 349 Parts Sabotaged 5 | . . . . . . . . . . . . . . . . . 2 . . . . . . . . . . . . . . . . . . . . . . . 3 Parts Stolen . | . . . . . . . . . . . . . . . . . . . . . . . . . . . . . . . . . . . . . . . . . . Parts Stripped . | . . . . . . . . . . . . . . . . . . . . . . . . . . . . . . . . . . . . . . . . . . Power Chain Reactions 6 | . . . 1 . . . . 1 . . . . . . . . . 1 . . . . . . . . . . . . . . . . . . . . . . 3 Alert | -11 -10 -10 -9 -9 -8 -8 -8 -8 -7 -7 -7 -7 -6 -6 -5 -5 -5 -5 -5 -5 -5 -5 -4 -4 -4 -4 -4 -4 -4 -4 -3 -3 -3 -3 -3 -3 -2 -2 -2 -2 -1 ------- Run | Yrd Mat Min Mat Min Mat Gar Mat Gar Fac Gar Sto Gar Fac Gar Fac Was Fac Ext Cet Arc Hub Gar Fac Was Fac Gar Fac Gar Fac Gar Res Gar Res Gar Res Gar Res Gar Res Gar Acc Maximum Alert Level 5 | . . . 2 . 1 4 3 3 2 3 2 4 2 4 3 1 4 4 2 1 2 4 3 1 . 3 2 3 2 4 3 4 2 3 2 3 2 4 2 3 5 Low Security (%) 21 | 100 100 100 77 100 96 3 . . 38 20 . . . . . 92 45 . . . 74 . . 82 100 30 . 1 . . . . . . . . . . 74 17 7 Level 1 14 | . . . 18 . 3 15 . . 10 25 . . 1 13 . 7 7 . . 100 24 20 . 17 . 19 89 31 36 1 . 8 . 9 50 31 63 36 . 12 16 Level 2 30 | . . . 4 . . 25 78 43 51 24 100 16 98 28 94 . 14 60 100 . 1 11 66 . . 32 10 41 63 15 81 25 100 30 49 29 36 34 25 54 15 Level 3 23 | . . . . . . 55 21 56 . 29 . 80 . 43 5 . 30 36 . . . 38 33 . . 17 . 25 . 32 18 47 . 60 . 38 . 26 . 15 18 Level 4 6 | . . . . . . . . . . . . 2 . 13 . . 2 2 . . . 28 . . . . . . . 50 . 17 . . . . . 2 . . 18 Level 5 3 | . . . . . . . . . . . . . . . . . . . . . . . . . . . . . . . . . . . . . . . . . 23 High Security . | . . . . . . . . . . . . . . . . . . . . . . . . . . . . . . . . . . . . . . . . . . Max Security . | . . . . . . . . . . . . . . . . . . . . . . . . . . . . . . . . . . . . . . . . . . Sterilizations 1 | . . . . . . . . . . . . . . . . . . . . . . . . . . . . . . . . . . . . . . . . . 1 Peak Influence 1740 | 5 116 85 485 187 218 1102 796 1090 573 1031 661 1130 620 1285 739 215 1325 1166 620 318 405 1239 776 242 99 809 419 876 502 1556 875 1186 666 1011 568 908 510 1121 630 840 1740 Initial 875 | . . . 22 187 . 139 536 414 571 119 502 429 592 282 674 215 . 648 556 203 94 251 650 242 . 55 419 179 459 345 875 377 666 368 568 264 510 278 630 97 504 Average 571 | . 31 9 116 55 87 682 632 722 354 517 513 844 499 777 607 86 417 697 542 286 132 810 652 110 34 426 332 512 418 1015 574 817 579 690 424 586 389 594 261 498 939 Influence Increases 28076 | 10 438 182 1039 102 866 1023 941 796 252 952 465 821 185 1073 434 14 2354 1610 215 248 719 1008 630 8 240 764 84 767 571 1411 250 859 137 743 235 894 325 1263 159 833 2156 Destroy 0b10 Robot/C 14884 | . 220 120 600 40 540 560 600 450 150 420 165 465 90 585 255 . 1080 930 120 60 300 468 336 . 132 384 24 432 336 636 156 550 90 480 130 530 170 500 70 490 1220 Destroy 0b10 Robot/NC 1062 | 10 15 20 75 . 80 . 70 4 12 32 16 4 8 . 28 . 76 48 8 32 36 8 27 . 12 . 9 3 12 21 3 . 12 6 12 . 6 . 12 . 345 Destroy Leader 2190 | . 54 20 180 10 146 20 142 24 34 24 70 40 32 32 44 . 236 90 . . 90 40 66 . 30 30 6 48 72 48 38 36 15 45 30 50 30 40 10 40 228 Allied During Kill 1374 | . . . . . 7 . . 8 . 18 156 69 22 19 11 . . 354 76 72 86 24 . . 2 . . 22 29 38 . 20 . 38 1 108 3 179 2 10 . Successful Hack 485 | . 47 . 15 . 5 14 6 23 9 11 23 6 7 . 4 . 66 6 7 . 35 20 13 . . . 16 5 3 24 15 . . . 3 15 10 4 7 11 55 Select Force Hacks 113 | . 30 . 60 . . . . . . . 23 . . . . . . . . . . . . . . . . . . . . . . . . . . . . . . Disable Machine 994 | . . . 15 . 30 . 15 . 12 . . . 12 12 24 . 360 48 . 72 72 33 36 . . 18 27 18 9 18 18 9 . 24 32 16 8 . 16 8 32 Anti-Garrison Action 3577 | . . . . . . 250 . 188 . 338 . 189 . 339 . . . . . . . 278 . . . 270 . 180 . 420 . 200 . 100 . 150 . 475 . 200 . Destroy Structure 2323 | . 12 22 4 52 13 104 48 51 11 97 12 36 14 50 44 14 452 62 4 12 76 53 134 8 46 44 2 41 92 197 20 35 20 18 19 9 98 25 42 18 212 Partial Spotted 43 | . . . . . . . . . . . . . . . . . . . . . . . 9 . 9 . . . 9 . . . . . 8 . . . . 8 . Lose Combat Pursuer 1031 | . 60 . 90 . 45 75 60 48 24 12 . 12 . 36 24 . 84 72 . . 24 84 9 . 9 18 . 18 9 9 . 9 . 32 . 16 . 40 . 48 64 Influence Decreases 26336 | 10 438 124 616 583 651 136 1406 343 1172 91 835 352 912 191 1103 630 1031 1939 700 486 631 128 1177 700 161 44 626 148 953 349 1303 176 832 223 893 339 862 513 1150 123 1256 Entered New Map 11321 | . . . 36 294 . 76 566 223 519 51 529 232 538 121 611 401 . 675 438 306 177 108 589 450 . 24 380 78 417 149 681 126 520 123 443 89 398 93 491 33 336 Time Decay 10220 | 10 401 124 541 259 506 . 470 . 368 . 206 . 334 . 452 209 566 654 222 160 394 . 498 250 142 . 246 . 506 . 622 . 302 . 380 . 374 . 254 . 770 Lost Part 934 | . . . 39 30 10 60 70 80 10 40 . . . 50 . . 85 40 . . . 20 60 . 10 10 . 10 10 60 . 10 10 . 10 30 50 . 10 40 80 Lost Ally 2272 | . . . . . 58 . . 40 . . 100 120 40 20 40 20 5 420 40 20 60 . 30 . 9 10 . 60 20 140 . 40 . 100 60 220 40 420 20 50 70 Purge Threat 1589 | . 37 . . . 77 . 300 . 275 . . . . . . . 375 150 . . . . . . . . . . . . . . . . . . . . 375 . . Squads Dispatched 133 | . 3 . 3 . 3 . 4 . 5 . 7 . 3 . 5 . 21 9 . . 8 . 8 . 2 . . . 3 . 9 . 3 . 2 . 5 . 3 . 27 Investigation 15 | . 1 . 3 . . . . . . . 2 . . . 1 . 4 . . . . . . . . . . . 1 . 2 . . . . . . . . . 1 Extermination 36 | . . . . . . . . . 1 . 1 . 1 . 2 . 5 . . . 2 . 3 . . . . . 2 . . . 1 . 1 . 2 . 2 . 13 Reinforcement 36 | . 2 . . . 2 . 2 . 3 . 1 . . . . . 5 3 . . 3 . 3 . 1 . . . . . 7 . . . 1 . 1 . . . 2 Assault 32 | . . . . . . . 2 . 1 . . . . . 1 . 7 6 . . . . 2 . . . . . . . . . 2 . . . . . . . 11 Garrison 14 | . . . . . 1 . . . . . 3 . 2 . 1 . . . . . 3 . . . 1 . . . . . . . . . . . 2 . 1 . . Intercept . | . . . . . . . . . . . . . . . . . . . . . . . . . . . . . . . . . . . . . . . . . . Searches Triggered . | . . . . . . . . . . . . . . . . . . . . . . . . . . . . . . . . . . . . . . . . . . Unchained Authorized 2 | . . . . . . . . . . . . . . . . . . . . . . . 1 . . . . . . . . . . . . . . . . . 1 Construction Impeded 4 | . . . . . . . . . . . . . . . . . 1 2 . . . . . . . . . . . . . . . . 1 . . . . . . Haulers Reinforced 2 | . . . . . . . . . . . 1 . . . . . . . . . . . . . . . . . . . 1 . . . . . . . . . . Active Scanning Responses . | . . . . . . . . . . . . . . . . . . . . . . . . . . . . . . . . . . . . . . . . . . Cargo Convoy Interrupts 1 | . . . . . . . . . . . . . . . . . 1 . . . . . . . . . . . . . . . . . . . . . . . . Stealth | -11 -10 -10 -9 -9 -8 -8 -8 -8 -7 -7 -7 -7 -6 -6 -5 -5 -5 -5 -5 -5 -5 -5 -4 -4 -4 -4 -4 -4 -4 -4 -3 -3 -3 -3 -3 -3 -2 -2 -2 -2 -1 --------- Run | Yrd Mat Min Mat Min Mat Gar Mat Gar Fac Gar Sto Gar Fac Gar Fac Was Fac Ext Cet Arc Hub Gar Fac Was Fac Gar Fac Gar Fac Gar Res Gar Res Gar Res Gar Res Gar Res Gar Acc Distress Signals 37 | . 2 . 1 . 2 . . . . . . . 3 . 2 . 7 1 2 1 2 . 2 . 5 . . . . . 5 . . . 1 . . . . . 1 Communications Jammed 46 | . . . . . . . . . . . . . . . . . . . . . . 3 1 . 2 . . . 10 1 . . . . 2 . 2 . 2 . 23 Distress Signals 35 | . . . . . . . . . . . . . . . . . . . . . . 3 . . 2 . . . 9 1 . . . . 2 . . . . . 18 Times Spotted 1361 | . 27 8 47 14 42 29 48 32 16 29 11 28 8 37 19 5 87 74 11 10 24 32 48 6 17 34 3 35 36 59 15 46 13 56 21 43 21 56 11 55 148 Peak Tracking Total 17 | . 4 3 4 4 6 6 12 6 6 4 2 8 3 7 5 1 7 11 5 1 8 8 8 3 8 4 1 4 5 4 3 6 4 17 5 9 5 4 3 6 6 Tactical Retreats 69 | . 3 1 5 1 3 3 3 3 1 1 . 1 . 2 1 . 3 5 . . 1 5 1 . 1 1 . 1 1 1 . 1 . 2 . 2 . 5 . 4 7 Traps | -11 -10 -10 -9 -9 -8 -8 -8 -8 -7 -7 -7 -7 -6 -6 -5 -5 -5 -5 -5 -5 -5 -5 -4 -4 -4 -4 -4 -4 -4 -4 -3 -3 -3 -3 -3 -3 -2 -2 -2 -2 -1 ------- Run | Yrd Mat Min Mat Min Mat Gar Mat Gar Fac Gar Sto Gar Fac Gar Fac Was Fac Ext Cet Arc Hub Gar Fac Was Fac Gar Fac Gar Fac Gar Res Gar Res Gar Res Gar Res Gar Res Gar Acc Traps Triggered 65 | . . . 1 . 1 9 . 4 . 3 . . . 1 1 . 7 . . . . 3 1 . . 5 1 4 1 3 1 1 1 . . 5 . 6 1 4 1 Indirectly . | . . . . . . . . . . . . . . . . . . . . . . . . . . . . . . . . . . . . . . . . . . Trap Hack Attempts . | . . . . . . . . . . . . . . . . . . . . . . . . . . . . . . . . . . . . . . . . . . Triggered . | . . . . . . . . . . . . . . . . . . . . . . . . . . . . . . . . . . . . . . . . . . Disarmed . | . . . . . . . . . . . . . . . . . . . . . . . . . . . . . . . . . . . . . . . . . . Reprogrammed . | . . . . . . . . . . . . . . . . . . . . . . . . . . . . . . . . . . . . . . . . . . Reused . | . . . . . . . . . . . . . . . . . . . . . . . . . . . . . . . . . . . . . . . . . . Traps Extracted . | . . . . . . . . . . . . . . . . . . . . . . . . . . . . . . . . . . . . . . . . . . Installed . | . . . . . . . . . . . . . . . . . . . . . . . . . . . . . . . . . . . . . . . . . . Triggered . | . . . . . . . . . . . . . . . . . . . . . . . . . . . . . . . . . . . . . . . . . . Machines | -11 -10 -10 -9 -9 -8 -8 -8 -8 -7 -7 -7 -7 -6 -6 -5 -5 -5 -5 -5 -5 -5 -5 -4 -4 -4 -4 -4 -4 -4 -4 -3 -3 -3 -3 -3 -3 -2 -2 -2 -2 -1 ---------- Run | Yrd Mat Min Mat Min Mat Gar Mat Gar Fac Gar Sto Gar Fac Gar Fac Was Fac Ext Cet Arc Hub Gar Fac Was Fac Gar Fac Gar Fac Gar Res Gar Res Gar Res Gar Res Gar Res Gar Acc Machines Disabled 139 | . . . 1 . 2 2 1 . 1 1 . 2 1 6 2 . 30 4 . 6 6 8 4 . . 6 3 8 1 7 2 4 . 6 4 6 1 3 2 5 4 Max in Single Turn 5 | . . . 1 . 1 1 1 . 1 1 . 1 1 1 1 . 5 1 . 1 1 1 1 . . 1 1 1 1 2 1 1 . 2 1 1 1 1 1 1 1 Garrison Access 8 | . . . . . . . . . . . . . . . 1 . 3 . . . . . . . . . . . . . 1 . . . . . . . . . 3 Garrison Relay 37 | . . . . . . 1 . . . 1 . 2 . 3 . . . . . . . 5 . . . 4 . 2 . 3 . 3 . 2 . 3 . 4 . 4 . Phase Generator 1 | . . . . . . . . . . . . . . . . . . . . . . . . . . . . . . 1 . . . . . . . . . . . Network Hub 1 | . . . . . . . . . . . . . . . . . . . . . 1 . . . . . . . . . . . . . . . . . . . . Machines Repaired . | . . . . . . . . . . . . . . . . . . . . . . . . . . . . . . . . . . . . . . . . . . Machines Dismantled 4 | . . . . . . . . . . . . . . 1 . . . 2 . . 1 . . . . . . . . . . . . . . . . . . . . Machines Sabotaged . | . . . . . . . . . . . . . . . . . . . . . . . . . . . . . . . . . . . . . . . . . . Overloaded Fab Kills . | . . . . . . . . . . . . . . . . . . . . . . . . . . . . . . . . . . . . . . . . . . Hacking | -11 -10 -10 -9 -9 -8 -8 -8 -8 -7 -7 -7 -7 -6 -6 -5 -5 -5 -5 -5 -5 -5 -5 -4 -4 -4 -4 -4 -4 -4 -4 -3 -3 -3 -3 -3 -3 -2 -2 -2 -2 -1 --------- Run | Yrd Mat Min Mat Min Mat Gar Mat Gar Fac Gar Sto Gar Fac Gar Fac Was Fac Ext Cet Arc Hub Gar Fac Was Fac Gar Fac Gar Fac Gar Res Gar Res Gar Res Gar Res Gar Res Gar Acc Machines Accessed 160 | . 7 . 11 . 5 1 5 4 4 1 7 2 6 2 8 . 18 4 1 . 5 3 2 . 1 1 7 2 3 4 8 2 3 2 5 3 7 2 3 2 9 Terminals 96 | . 5 . 6 . 3 1 2 4 3 1 4 2 3 2 3 . 9 4 1 . 4 3 2 . . 1 2 2 . 4 1 2 2 2 2 3 2 2 2 2 5 Fabricators 9 | . . . . . . . . . . . . . . . 2 . 2 . . . . . . . . . 1 . 1 . 1 . . . . . 1 . . . 1 Repair Stations 7 | . . . 2 . . . 1 . . . 1 . . . . . 2 . . . . . . . . . . . 1 . . . . . . . . . . . . Recycling Units 19 | . 2 . 2 . 1 . 1 . . . 1 . 2 . 2 . 1 . . . . . . . . . 3 . . . 1 . . . 1 . 2 . . . . Scanalyzers 8 | . . . 1 . . . . . . . . . . . . . 2 . . . . . . . . . . . . . 3 . . . 1 . 1 . . . . Garrison Access 21 | . . . . . 1 . 1 . 1 . 1 . 1 . 1 . 2 . . . 1 . . . 1 . 1 . 1 . 2 . 1 . 1 . 1 . 1 . 3 Total Hacks 381 | . 29 . 34 . 17 1 9 7 6 1 10 5 9 3 15 . 45 8 1 . 13 5 10 . 1 2 19 5 5 7 22 4 4 4 10 5 25 6 6 5 23 Successful 164 | . 13 . 21 . 8 1 7 3 2 1 5 1 5 1 9 . 18 2 1 . 4 2 3 . 1 . 8 1 4 3 6 1 1 . 3 2 8 2 3 2 12 Failed 215 | . 15 . 12 . 9 . 2 4 4 . 5 4 4 2 6 . 27 6 . . 9 3 7 . . 2 11 4 1 4 16 3 3 4 7 3 17 4 3 3 11 Catastrophic 53 | . 3 . . . 2 . 1 . . . 1 1 1 2 1 . 6 1 . . 3 2 3 . . 1 4 1 . 2 4 1 1 . 4 1 1 . . 1 5 Database Lockouts 2 | . 1 . 1 . . . . . . . . . . . . . . . . . . . . . . . . . . . . . . . . . . . . . . Manual 168 | . 24 . 18 . 14 . 4 . 5 . 3 . 3 . 8 . 21 4 1 . 11 . 5 . . . 10 . 2 . 2 . 3 . 6 . 8 . 4 . 12 Terminals 241 | . 24 . 18 . 11 1 5 7 5 1 6 5 5 3 7 . 19 8 1 . 12 5 10 . . 2 12 5 . 7 1 4 3 4 6 5 8 6 5 5 15 Fabricators 21 | . . . . . . . . . . . . . . . 4 . 7 . . . . . . . . . 1 . 3 . 1 . . . . . 3 . . . 2 Repair Stations 18 | . . . 7 . . . 2 . . . 1 . . . . . 7 . . . . . . . . . . . 1 . . . . . . . . . . . . Recycling Units 42 | . 5 . 6 . 5 . 1 . . . 2 . 3 . 3 . 2 . . . . . . . . . 5 . . . 5 . . . 1 . 4 . . . . Scanalyzers 31 | . . . 3 . . . . . . . . . . . . . 6 . . . . . . . . . . . . . 11 . . . 2 . 9 . . . . Garrison Access 28 | . . . . . 1 . 1 . 1 . 1 . 1 . 1 . 4 . . . 1 . . . 1 . 1 . 1 . 4 . 1 . 1 . 1 . 1 . 6 Terminal Hacks 51 | . 5 . 3 . 2 1 3 3 . 1 2 1 2 1 1 . 3 2 1 . . 2 2 . . . 3 1 . 3 . 1 . . . 2 . 2 1 2 1 Part Schematic 1 | . 1 . . . . . . . . . . . . . . . . . . . . . . . . . . . . . . . . . . . . . . . . Robot Analysis 1 | . 1 . . . . . . . . . . . . . . . . . . . . . . . . . . . . . . . . . . . . . . . . Prototype ID Bank 2 | . 1 . 1 . . . . . . . . . . . . . . . . . . . . . . . . . . . . . . . . . . . . . . Open Door 11 | . . . . . . . . . . . 2 1 . . . . 1 1 1 . . . . . . . . 1 . 1 . . . . . . . 1 . 1 1 Branch Access Points 4 | . . . . . . . . . . . . . 1 . . . 1 . . . . . 1 . . . 1 . . . . . . . . . . . . . . Emergency Access Points 7 | . . . . . . 1 . . . 1 . . . 1 . . . . . . . 1 . . . . . . . 1 . 1 . . . . . 1 . . . Terminal Index 4 | . . . . . . . . . . . . . 1 . 1 . 1 . . . . . . . . . . . . . . . . . . . . . 1 . . Unreport Threat 5 | . 1 . . . 1 . 2 . . . . . . . . . . 1 . . . . . . . . . . . . . . . . . . . . . . . Locate Traps 6 | . 1 . 1 . 1 . 1 . . . . . . . . . . . . . . . 1 . . . 1 . . . . . . . . . . . . . . Zone Layout 2 | . . . 1 . . . . . . . . . . . . . . . . . . . . . . . 1 . . . . . . . . . . . . . . Garrison Registry 3 | . . . . . . . . 1 . . . . . . . . . . . . . 1 . . . . . . . . . . . . . 1 . . . . . Patrol Navigation 1 | . . . . . . . . 1 . . . . . . . . . . . . . . . . . . . . . . . . . . . . . . . . . Security Stations 4 | . . . . . . . . 1 . . . . . . . . . . . . . . . . . . . . . 1 . . . . . 1 . . . 1 . Fabricator Hacks 6 | . . . . . . . . . . . . . . . 2 . 2 . . . . . . . . . . . 1 . . . . . . . . . . . 1 Network Status 6 | . . . . . . . . . . . . . . . 2 . 2 . . . . . . . . . . . 1 . . . . . . . . . . . 1 Repair Station Hacks 10 | . . . 6 . . . 2 . . . . . . . . . 2 . . . . . . . . . . . . . . . . . . . . . . . . Scan Component 5 | . . . 3 . . . 1 . . . . . . . . . 1 . . . . . . . . . . . . . . . . . . . . . . . . Repair 5 | . . . 3 . . . 1 . . . . . . . . . 1 . . . . . . . . . . . . . . . . . . . . . . . . Recycling Unit Hacks 12 | . 1 . 2 . 1 . 1 . . . . . 1 . 2 . 1 . . . . . . . . . 1 . . . 1 . . . . . 1 . . . . Retrieve Components 12 | . 1 . 2 . 1 . 1 . . . . . 1 . 2 . 1 . . . . . . . . . 1 . . . 1 . . . . . 1 . . . . Scanalyzer 9 | . . . 1 . . . . . . . . . . . . . 2 . . . . . . . . . . . . . 1 . . . . . 5 . . . . Insert Component 2 | . . . . . . . . . . . . . . . . . . . . . . . . . . . . . . . . . . . . . 2 . . . . Retrieve Study 7 | . . . 1 . . . . . . . . . . . . . 2 . . . . . . . . . . . . . 1 . . . . . 3 . . . . Garrison Access Hacks 28 | . . . . . 1 . 1 . 1 . 1 . 1 . 1 . 4 . . . 1 . . . 1 . 1 . 1 . 4 . 1 . 1 . 1 . 1 . 6 Unlock Access 15 | . . . . . 1 . 1 . 1 . 1 . 1 . . . . . . . 1 . . . 1 . 1 . 1 . 2 . 1 . 1 . 1 . 1 . . Seal Access 7 | . . . . . . . . . . . . . . . 1 . 2 . . . . . . . . . . . . . 1 . . . . . . . . . 3 Coupler Status 6 | . . . . . . . . . . . . . . . . . 2 . . . . . . . . . . . . . 1 . . . . . . . . . 3 Unauthorized Hacks 48 | . 7 . 9 . 4 . . . 1 . 2 . 1 . 3 . 4 . . . 3 . 1 . . . 3 . 2 . . . . . 2 . 1 . 1 . 4 Terminals 37 | . 6 . 7 . 3 . . . 1 . 1 . 1 . 1 . 2 . . . 3 . 1 . . . 3 . . . . . . . 2 . 1 . 1 . 4 Track 2 | . 1 . . . . . . . . . . . . . . . . . . . 1 . . . . . . . . . . . . . . . . . . . . Botnet 22 | . 3 . 2 . 1 . . . 1 . 1 . 1 . 1 . 2 . . . 1 . 1 . . . 2 . . . . . . . 1 . 1 . 1 . 3 Operators 3 | . . . . . . . . . . . . . . . . . . . . . . . . . . . 1 . . . . . . . 1 . . . . . 1 Skim 10 | . 2 . 5 . 2 . . . . . . . . . . . . . . . 1 . . . . . . . . . . . . . . . . . . . . Fabricators 3 | . . . . . . . . . . . . . . . 2 . . . . . . . . . . . . . 1 . . . . . . . . . . . . Liberate 1 | . . . . . . . . . . . . . . . 1 . . . . . . . . . . . . . . . . . . . . . . . . . . Haulers 2 | . . . . . . . . . . . . . . . 1 . . . . . . . . . . . . . 1 . . . . . . . . . . . . Repair Stations 2 | . . . . . . . . . . . . . . . . . 1 . . . . . . . . . . . 1 . . . . . . . . . . . . Mechanics 1 | . . . . . . . . . . . . . . . . . 1 . . . . . . . . . . . . . . . . . . . . . . . . Patch 1 | . . . . . . . . . . . . . . . . . . . . . . . . . . . . . 1 . . . . . . . . . . . . Recycling Units 6 | . 1 . 2 . 1 . . . . . 1 . . . . . 1 . . . . . . . . . . . . . . . . . . . . . . . . Recyclers 1 | . . . . . . . . . . . . . . . . . 1 . . . . . . . . . . . . . . . . . . . . . . . . Mask 1 | . . . . . 1 . . . . . . . . . . . . . . . . . . . . . . . . . . . . . . . . . . . . Tunnel 4 | . 1 . 2 . . . . . . . 1 . . . . . . . . . . . . . . . . . . . . . . . . . . . . . . Scanalyzers . | . . . . . . . . . . . . . . . . . . . . . . . . . . . . . . . . . . . . . . . . . . Garrison Access . | . . . . . . . . . . . . . . . . . . . . . . . . . . . . . . . . . . . . . . . . . . Data Cores Recovered . | . . . . . . . . . . . . . . . . . . . . . . . . . . . . . . . . . . . . . . . . . . Used . | . . . . . . . . . . . . . . . . . . . . . . . . . . . . . . . . . . . . . . . . . . Hacking Detections 126 | . 6 . 9 . 4 . 3 4 3 1 4 1 5 2 6 . 16 4 . . 5 2 2 . . 1 6 1 . 4 8 1 2 2 4 2 6 1 3 2 6 Full Trace Events 9 | . 1 . . . . . . 1 . . . 1 . . 1 . 3 . . . . . . . . 1 . . . . . . . . . . . . . . 1 Feedback Events . | . . . . . . . . . . . . . . . . . . . . . . . . . . . . . . . . . . . . . . . . . . Feedback Blocked . | . . . . . . . . . . . . . . . . . . . . . . . . . . . . . . . . . . . . . . . . . . Robot Schematics Acquired . | . . . . . . . . . . . . . . . . . . . . . . . . . . . . . . . . . . . . . . . . . . Robots Built . | . . . . . . . . . . . . . . . . . . . . . . . . . . . . . . . . . . . . . . . . . . Authchips . | . . . . . . . . . . . . . . . . . . . . . . . . . . . . . . . . . . . . . . . . . . Time . | . . . . . . . . . . . . . . . . . . . . . . . . . . . . . . . . . . . . . . . . . . Total Robot Build Rating . | . . . . . . . . . . . . . . . . . . . . . . . . . . . . . . . . . . . . . . . . . . Part Schematics Acquired 1 | . 1 . . . . . . . . . . . . . . . . . . . . . . . . . . . . . . . . . . . . . . . . Parts Built . | . . . . . . . . . . . . . . . . . . . . . . . . . . . . . . . . . . . . . . . . . . Authchips . | . . . . . . . . . . . . . . . . . . . . . . . . . . . . . . . . . . . . . . . . . . Time . | . . . . . . . . . . . . . . . . . . . . . . . . . . . . . . . . . . . . . . . . . . Total Part Build Rating . | . . . . . . . . . . . . . . . . . . . . . . . . . . . . . . . . . . . . . . . . . . Part Studies Acquired 7 | . . . 1 . . . . . . . . . . . . . 2 . . . . . . . . . . . . . 1 . . . . . 3 . . . . Parts Repaired 5 | . . . 3 . . . 1 . . . . . . . . . 1 . . . . . . . . . . . . . . . . . . . . . . . . Time 191 | . . . 103 . . . 38 . . . . . . . . . 50 . . . . . . . . . . . . . . . . . . . . . . . . Parts Recycled . | . . . . . . . . . . . . . . . . . . . . . . . . . . . . . . . . . . . . . . . . . . Recycled Matter . | . . . . . . . . . . . . . . . . . . . . . . . . . . . . . . . . . . . . . . . . . . Retrieved Matter . | . . . . . . . . . . . . . . . . . . . . . . . . . . . . . . . . . . . . . . . . . . Retrieved Components 46 | . 2 . 12 . 10 . 10 . . . . . 1 . 1 . . . . . . . . . . . 3 . . . 6 . . . . . 1 . . . . Parts Scanalyzed . | . . . . . . . . . . . . . . . . . . . . . . . . . . . . . . . . . . . . . . . . . . Part Schematics Acquired . | . . . . . . . . . . . . . . . . . . . . . . . . . . . . . . . . . . . . . . . . . . Parts Damaged . | . . . . . . . . . . . . . . . . . . . . . . . . . . . . . . . . . . . . . . . . . . Bothacking | -11 -10 -10 -9 -9 -8 -8 -8 -8 -7 -7 -7 -7 -6 -6 -5 -5 -5 -5 -5 -5 -5 -5 -4 -4 -4 -4 -4 -4 -4 -4 -3 -3 -3 -3 -3 -3 -2 -2 -2 -2 -1 ------------ Run | Yrd Mat Min Mat Min Mat Gar Mat Gar Fac Gar Sto Gar Fac Gar Fac Was Fac Ext Cet Arc Hub Gar Fac Was Fac Gar Fac Gar Fac Gar Res Gar Res Gar Res Gar Res Gar Res Gar Acc Used RIF Installer 15 | . . . . . . 1 . 1 . 1 . 1 . 2 . . . . . . . 1 . . . 1 . . . 1 . 1 . 1 . 2 . 1 . 1 . Hotswap 1 | . . . . . . . . . . . . 1 . . . . . . . . . . . . . . . . . . . . . . . . . . . . . Code Merge 2 | . . . . . . . . . . . . . . 1 . . . . . . . . . . . . . . . . . . . . . 1 . . . . . Command Fork 1 | . . . . . . . . . . . . . . . . . . . . . . . . . . . . . . . . . . . . 1 . . . . . Threat Obfuscator 3 | . . . . . . . . 1 . . . . . . . . . . . . . 1 . . . . . . . . . 1 . . . . . . . . . Robot Detection 1 | . . . . . . . . . . . . . . . . . . . . . . . . . . . . . . . . . . . . . . 1 . . . Watcher Feeds 1 | . . . . . . . . . . . . . . . . . . . . . . . . . . 1 . . . . . . . . . . . . . . . Patrol Navigation 1 | . . . . . . . . . . 1 . . . . . . . . . . . . . . . . . . . . . . . . . . . . . . . Structural Interface 1 | . . . . . . . . . . . . . . . . . . . . . . . . . . . . . . 1 . . . . . . . . . . . Program Shield 1 | . . . . . . . . . . . . . . . . . . . . . . . . . . . . . . . . . . . . . . . . 1 . Autooverride 1 | . . . . . . . . . . . . . . . . . . . . . . . . . . . . . . . . . . 1 . . . . . . . Autoassimilate 1 | . . . . . . . . . . . . . . 1 . . . . . . . . . . . . . . . . . . . . . . . . . . . Robots Hacked 79 | . . . . . . . . . 2 2 4 1 1 2 4 1 5 . . . . . 5 6 2 1 2 . 8 . 1 . 1 2 5 . 1 12 2 . 9 Non-combat 33 | . . . . . . . . . 2 . 3 . . . 4 . 5 . . . . . 4 . . 1 1 . 3 . . . 1 . 2 . . . 2 . 5 Combat 46 | . . . . . . . . . . 2 1 1 1 2 . 1 . . . . . . 1 6 2 . 1 . 5 . 1 . . 2 3 . 1 12 . . 4 Autooverrided 2 | . . . . . . . . . . . . . . . . . . . . . . . . . . . . . . . . . . . . . . 2 . . . Autoassimilated 4 | . . . . . . . . . . . . . . . . . . . . . . . . . . . . . . . . . . 1 . . . 1 . . 2 Robot Hacks Applied 93 | . . . . . . . . . 4 2 4 2 2 2 4 1 8 . . . . . 5 6 3 1 3 . 9 . 1 . 1 1 8 . 2 9 6 . 9 parse_system 7 | . . . . . . . . . . . 1 1 . 1 . . . . . . . . 1 . . . . . . . 1 . . . 1 . . . 1 . . no_distress 4 | . . . . . . . . . . . . . . . . . 1 . . . . . . . . . 1 . 2 . . . . . . . . . . . . find_chute 3 | . . . . . . . . . 1 . . . . . 1 . . . . . . . 1 . . . . . . . . . . . . . . . . . . find_fabricator 1 | . . . . . . . . . . . . . . . . . . . . . . . . . . . . . . . . . . . 1 . . . . . . drop_inventory 8 | . . . . . . . . . . . 1 . . . 2 . 2 . . . . . 1 . . . . . . . . . . . 1 . . . . . 1 recall_reinforcements 1 | . . . . . . . . . . . 1 . . . . . . . . . . . . . . . . . . . . . . . . . . . . . . purge_threat 8 | . . . . . . . . . 2 . . . . . . . 3 . . . . . . . . . . . . . . . . . . . . . 3 . . block_reporting 2 | . . . . . . . . . . . . . . . . . . . . . . . . . . . . . . . . . . . . . . . 1 . 1 map_route 9 | . . . . . . . . . . . . . . . 1 . 1 . . . . . 1 . . . . . 1 . . . 1 . 1 . . . . . 3 ignore_targets 7 | . . . . . . . . . . . . . . . . 1 . . . . . . . 6 . . . . . . . . . . . . . . . . . find_garrison 7 | . . . . . . . . . . . . . 1 . . . . . . . . . . . 1 . 1 . 1 . . . . . 1 . 1 . . . 1 amplify_resonance 1 | . . . . . . . . . . . . . . . . . . . . . . . . . . . . . 1 . . . . . . . . . . . . wipe_record 1 | . . . . . . . . . . . . . . . . . . . . . . . . . . . . . 1 . . . . . . . . . . . . reboot_system 3 | . . . . . . . . . . . . . . . . . . . . . . . . . 1 . . . 1 . . . . . . . . . . . 1 go_dormant 1 | . . . . . . . . . . . . . . . . . . . . . . . . . . . . . 1 . . . . . . . . . . . . overwrite_iff 5 | . . . . . . . . . . . . . . . . . . . . . . . . . . . . . . . . . . . 3 . . 2 . . . formatsys_low 7 | . . . . . . . . . 1 . 1 . . . . . 1 . . . . . 1 . . 1 . . . . . . . . . . . . 1 . 1 formatsys_high 18 | . . . . . . . . . . 2 . 1 1 1 . . . . . . . . . . 1 . 1 . 1 . . . . 1 . . 1 7 . . 1 Relay Couplers Released 166 | . . . . . . 5 . 3 . 3 . 12 . 11 2 . 3 . . . . 21 . . . 22 . 10 . 13 . 12 . 6 . 11 . 13 . 15 4 Machine Destruction 153 | . . . . . . 5 . . . 3 . 8 . 11 2 . 3 . . . . 21 . . . 19 . 10 . 13 . 12 . 6 . 11 . 13 . 15 1 Programmers 13 | . . . . . . . . 3 . . . 4 . . . . . . . . . . . . . 3 . . . . . . . . . . . . . . 3 Attached 30 | . . . . . . . . . 1 1 1 1 1 1 2 . . . . . . 1 . . 1 1 1 . 2 . 1 . 1 1 2 . 2 4 1 3 1 Merged Code Value 104 | . . . . . . . . . . . . . . . 5 . . . . . . 25 . . . . . . . . . . . . . . . 14 . 35 25 Fabnet Peak Effective % . | . . . . . . . . . . . . . . . . . . . . . . . . . . . . . . . . . . . . . . . . . . Robots Rewired 74 | . . . . . . . . . . . . 2 . . . . . 25 . . . 1 . . . . . 6 . 6 . 3 . 2 . 14 . 12 1 2 . Allies Hacked 2 | . . . . . . . . . . . . . 1 . . . . . . . . . . . . . . . 1 . . . . . . . . . . . . Hacks Repelled . | . . . . . . . . . . . . . . . . . . . . . . . . . . . . . . . . . . . . . . . . . . Allies | -11 -10 -10 -9 -9 -8 -8 -8 -8 -7 -7 -7 -7 -6 -6 -5 -5 -5 -5 -5 -5 -5 -5 -4 -4 -4 -4 -4 -4 -4 -4 -3 -3 -3 -3 -3 -3 -2 -2 -2 -2 -1 -------- Run | Yrd Mat Min Mat Min Mat Gar Mat Gar Fac Gar Sto Gar Fac Gar Fac Was Fac Ext Cet Arc Hub Gar Fac Was Fac Gar Fac Gar Fac Gar Res Gar Res Gar Res Gar Res Gar Res Gar Acc Total Allies 146 | . . . . 3 . . . 2 1 2 11 3 1 5 2 1 1 29 5 . . 1 1 . 1 1 1 7 1 7 . 3 . 6 3 14 1 25 2 2 4 Largest Group 20 | . . . . 3 3 . . 1 1 2 12 7 4 4 4 1 1 20 7 5 3 1 1 . 1 1 1 2 3 6 . 3 . 2 2 12 1 6 1 2 1 Highest-Rated Group 643 | . . . . 40 40 . . 25 26 64 237 135 107 209 209 31 23 620 643 444 281 99 89 . 49 36 49 170 141 180 . 141 . 229 105 428 110 417 69 84 64 Highest-Rated Ally 159 | . . . . 16 16 . . 25 26 32 32 32 32 80 80 31 23 159 146 146 96 99 89 . 49 36 49 99 49 46 . 47 . 119 62 119 110 119 69 46 64 Total Orders 92 | . . . . . . . . . . 2 . 26 5 . . . 3 . . 2 8 10 4 . . . 1 . 3 . . 1 . 1 . 4 4 9 1 1 7 STAY 47 | . . . . . . . . . . 1 . 11 3 . . . 1 . . 1 4 5 2 . . . 1 . 2 . . 1 . 1 . 2 2 4 1 1 4 FOLLOW 37 | . . . . . . . . . . 1 . 10 1 . . . 1 . . 1 4 5 1 . . . . . 1 . . . . . . 2 2 5 . . 3 AID 8 | . . . . . . . . . . . . 5 1 . . . 1 . . . . . 1 . . . . . . . . . . . . . . . . . . Ally Attacks 789 | . . . . . 11 . . 8 . 13 81 39 10 19 7 16 . 144 43 17 37 8 3 . 5 . 2 38 18 20 . 19 . 30 7 56 8 111 5 10 4 Total Damage 22587 | . . . . . 137 . . 274 . 679 1139 736 459 981 466 319 . 3240 1257 515 1484 323 39 . 166 . 95 1632 585 507 . 569 . 1043 220 1620 333 3319 122 263 65 Kills 142 | . . . . . 3 . . 3 . 6 8 7 2 6 3 . . 24 7 3 9 2 . . . . . 5 2 5 . 4 . 9 . 12 1 19 1 1 . Allies Corrupted 8 | . . . . . . . . . . . . . . . . . . 1 . . 1 . . . . . . . 1 . . . . . . . 1 3 . . 1 Allies Melted . | . . . . . . . . . . . . . . . . . . . . . . . . . . . . . . . . . . . . . . . . . . Intel | -11 -10 -10 -9 -9 -8 -8 -8 -8 -7 -7 -7 -7 -6 -6 -5 -5 -5 -5 -5 -5 -5 -5 -4 -4 -4 -4 -4 -4 -4 -4 -3 -3 -3 -3 -3 -3 -2 -2 -2 -2 -1 ------- Run | Yrd Mat Min Mat Min Mat Gar Mat Gar Fac Gar Sto Gar Fac Gar Fac Was Fac Ext Cet Arc Hub Gar Fac Was Fac Gar Fac Gar Fac Gar Res Gar Res Gar Res Gar Res Gar Res Gar Acc Active Infowar (turns) 40022 | . . . . . . . 2 . 786 438 . . 114 1837 1083 524 3030 1346 . 3 967 1539 739 228 343 1718 522 1878 1159 1619 6 . 438 1066 796 1790 862 2934 543 2020 9692 Optics 15966 | . . . . . . . . . . . . . . . . . . . . . . . . . . . . . . . . . . 2 . . 775 2934 543 2020 9692 Sensors 1 | . . . . . . . . . . . . . . . . . . . . . . . 1 . . . . . . . . . . . . . . . . . . Terrain 2 | . . . . . . . 2 . . . . . . . . . . . . . . . . . . . . . . . . . . . . . . . . . . Traps 2 | . . . . . . . . . . . . . . . . . . . . . . . . . . . . . . . 2 . . . . . . . . . . Seismic 17957 | . . . . . . . . . 786 438 . . 114 1837 1083 524 3030 1346 . 3 876 686 452 158 . . 449 697 133 86 . . 438 1064 608 1469 388 549 . 743 . Cloaking 16 | . . . . . . . . . . . . . . . . . . . . . . . . 1 15 . . . . . . . . . . . . . . . . Jamming 20255 | . . . . . . . . . . . . . . . . . . . . 2 414 1195 671 70 343 1718 522 1866 1159 1619 . . . . 380 1084 818 2537 543 2011 3303 ECM 4 | . . . . . . . . . . . . . . . . . . . . . . . . . . . . . . . 4 . . . . . . . . . . Robot Analysis Total 1 | . 1 . . . . . . . . . . . . . . . . . . . . . . . . . . . . . . . . . . . . . . . . Derelict Logs Recovered 2 | . . 1 . 1 . . . . . . . . . . . . . . . . . . . . . . . . . . . . . . . . . . . . . Drone Launches . | . . . . . . . . . . . . . . . . . . . . . . . . . . . . . . . . . . . . . . . . . . Drone Recoveries . | . . . . . . . . . . . . . . . . . . . . . . . . . . . . . . . . . . . . . . . . . . Exploration | -11 -10 -10 -9 -9 -8 -8 -8 -8 -7 -7 -7 -7 -6 -6 -5 -5 -5 -5 -5 -5 -5 -5 -4 -4 -4 -4 -4 -4 -4 -4 -3 -3 -3 -3 -3 -3 -2 -2 -2 -2 -1 ------------- Run | Yrd Mat Min Mat Min Mat Gar Mat Gar Fac Gar Sto Gar Fac Gar Fac Was Fac Ext Cet Arc Hub Gar Fac Was Fac Gar Fac Gar Fac Gar Res Gar Res Gar Res Gar Res Gar Res Gar Acc Turns Passed 68985 | 95 1610 1027 2767 964 1714 1840 1183 1854 857 2285 432 1682 746 2158 1122 524 3994 2420 469 337 1339 2047 1320 578 394 1839 522 1893 1360 2426 2116 1916 673 1606 888 1937 862 2934 543 2020 9692 Spaces Moved 25652 | 43 822 564 947 420 611 660 309 607 305 874 207 823 360 996 486 239 1662 897 167 108 441 939 421 227 145 853 273 828 508 1003 1127 882 305 653 390 818 387 1158 236 800 1151 Core 8 | 8 . . . . . . . . . . . . . . . . . . . . . . . . . . . . . . . . . . . . . . . . . Treads 22923 | 35 610 . 50 . . 643 309 607 305 874 207 823 360 996 486 239 1662 897 167 108 441 939 421 227 145 853 273 828 508 1003 1127 882 305 653 390 818 387 1158 236 800 1151 Legs . | . . . . . . . . . . . . . . . . . . . . . . . . . . . . . . . . . . . . . . . . . . Wheels 2721 | . 212 564 897 420 611 17 . . . . . . . . . . . . . . . . . . . . . . . . . . . . . . . . . . . Hover . | . . . . . . . . . . . . . . . . . . . . . . . . . . . . . . . . . . . . . . . . . . Flight . | . . . . . . . . . . . . . . . . . . . . . . . . . . . . . . . . . . . . . . . . . . Fastest Speed 50 | 50 150 150 160 185 200 215 235 235 225 155 160 160 160 155 155 160 160 160 162 162 162 165 162 160 160 160 157 152 156 155 160 165 161 161 161 161 161 160 162 162 103 Average Speed 174 | 139 159 150 203 199 212 234 258 251 225 211 160 160 160 162 159 160 163 164 162 162 202 166 173 160 160 160 159 154 159 160 165 165 161 165 161 161 162 186 175 166 159 Slowest Speed 320 | 160 240 150 210 200 215 235 320 320 235 240 160 160 160 240 238 163 240 240 162 243 245 240 240 162 160 160 166 230 240 240 170 165 165 241 161 161 227 250 233 243 250 Overloaded Moves . | . . . . . . . . . . . . . . . . . . . . . . . . . . . . . . . . . . . . . . . . . . Propulsion Burnouts . | . . . . . . . . . . . . . . . . . . . . . . . . . . . . . . . . . . . . . . . . . . Robots Hopped . | . . . . . . . . . . . . . . . . . . . . . . . . . . . . . . . . . . . . . . . . . . Potential Cave-ins 3 | . . . . . . . . . . . . . . . . . . . . . . . . . . . . . . . . . . . . . . . . . 3 Cave-ins Triggered . | . . . . . . . . . . . . . . . . . . . . . . . . . . . . . . . . . . . . . . . . . . Exploration Rate (%) 55 | 5 98 97 68 94 58 84 38 86 9 84 31 63 14 88 15 86 53 87 73 80 23 74 11 92 5 74 10 74 20 89 28 92 16 91 16 82 13 90 8 91 32 Regions Visited 41 Branch Regions 7 Pre-discovered Areas 6 | . 1 1 3 . . . . . . . 1 . . . . . . . . . . . . . . . . . . . . . . . . . . . . . . Known Exits Taken 16 | . . . . 1 1 . 1 . 1 . 1 . 1 . . . 1 . . . 1 . . . 1 . 1 . 1 . 1 . 1 . 1 . 1 . 1 . . Unknown Exits Taken 7 | 1 1 1 1 . . . . . . . . . . . . . . 1 1 1 . . . . . . . . . . . . . . . . . . . . . Scrap Searched 3 | . . 1 . 2 . . . . . . . . . . . . . . . . . . . . . . . . . . . . . . . . . . . . . Spaces Dug 195 | . 10 . . 25 . 2 . 2 4 47 11 9 8 7 . . 14 5 . . . 6 2 . . 1 . . 9 11 . . 5 . 6 . 4 . 4 1 2 Terrain Destroyed 1570 | . 10 26 . 72 9 16 58 50 12 98 11 30 13 14 20 12 248 28 1 7 30 19 101 5 26 11 1 17 51 122 12 24 31 14 19 51 55 25 19 40 162 Melee 33 | . . . . . . . . . 4 14 . 8 5 1 . . 1 . . . . . . . . . . . . . . . . . . . . . . . . Projectile 764 | . . . . . . . 1 12 3 6 . 1 1 6 20 12 139 25 1 7 28 18 69 5 13 11 1 15 51 24 11 14 12 12 19 48 20 21 19 37 82 AOE 673 | . 10 26 . 72 9 16 57 37 5 78 11 21 7 7 . . 108 . . . . . 32 . 13 . . . . 96 . 9 19 . . . 35 . . . 5 Terrain Rammed . | . . . . . . . . . . . . . . . . . . . . . . . . . . . . . . . . . . . . . . . . . . Walls Destroyed . | . . . . . . . . . . . . . . . . . . . . . . . . . . . . . . . . . . . . . . . . . . Machines Disabled . | . . . . . . . . . . . . . . . . . . . . . . . . . . . . . . . . . . . . . . . . . . Actions | -11 -10 -10 -9 -9 -8 -8 -8 -8 -7 -7 -7 -7 -6 -6 -5 -5 -5 -5 -5 -5 -5 -5 -4 -4 -4 -4 -4 -4 -4 -4 -3 -3 -3 -3 -3 -3 -2 -2 -2 -2 -1 --------- Run | Yrd Mat Min Mat Min Mat Gar Mat Gar Fac Gar Sto Gar Fac Gar Fac Was Fac Ext Cet Arc Hub Gar Fac Was Fac Gar Fac Gar Fac Gar Res Gar Res Gar Res Gar Res Gar Res Gar Acc Total 44995 | 63 1044 711 1603 514 883 806 580 800 429 1139 288 1096 500 1404 770 329 2622 1698 344 225 780 1300 779 367 232 1173 339 1262 913 1646 1327 1229 453 1049 583 1298 563 1814 306 1290 8444 Wait 12587 | 3 98 117 405 61 135 19 138 81 53 52 37 163 107 233 192 36 579 311 131 73 244 192 169 56 35 157 15 210 259 289 91 216 75 136 103 171 93 218 14 204 6616 Move 25619 | 42 821 563 946 419 611 659 309 606 304 872 207 822 359 994 486 238 1661 896 166 107 441 938 421 226 145 852 272 827 508 1002 1127 880 305 652 390 817 387 1157 235 799 1150 Hop . | . . . . . . . . . . . . . . . . . . . . . . . . . . . . . . . . . . . . . . . . . . Pick Up 530 | 5 28 3 58 2 17 10 18 11 11 25 3 8 3 15 7 3 31 21 5 2 10 19 10 10 2 15 4 13 4 23 7 5 6 10 5 12 6 30 1 17 35 Fast Attach 363 | 6 5 . 13 . 3 3 6 4 1 11 6 1 1 4 10 7 31 10 8 9 5 10 6 7 1 11 10 13 7 26 22 4 6 13 2 1 2 18 2 16 42 Attach 180 | . . 4 5 3 3 7 7 8 3 6 . . 3 7 1 . 12 8 2 2 4 3 7 6 3 5 2 7 3 6 2 3 2 2 3 5 6 8 . 9 13 Detach 26 | . 3 . . . . 1 1 . 1 2 1 . . . . . 3 1 . 1 . . 1 1 . 2 1 2 . . 1 . . . . . . 1 . . 3 Swap 1115 | . 11 5 13 6 13 5 15 8 16 24 8 17 5 47 20 3 102 33 3 3 16 29 60 5 13 29 9 42 46 42 15 18 21 40 30 39 21 56 17 44 166 Drop 815 | . 25 . 45 1 26 7 23 7 12 39 10 11 2 23 19 16 50 35 15 9 16 26 9 18 1 26 13 20 8 45 28 9 14 26 6 12 7 49 1 35 71 Fire 2751 | 7 53 19 118 22 73 85 60 69 24 85 16 37 13 70 32 26 148 80 14 19 41 75 95 38 32 76 13 111 78 139 34 77 24 91 43 83 41 81 35 127 347 Melee 55 | . . . . . 1 . . . 4 18 . 14 7 3 3 . 5 . . . . . . . . . . . . . . . . . . . . . . . . Ram 1 | . . . . . 1 . . . . . . . . . . . . . . . . . . . . . . . . . . . . . . . . . . . . Kick . | . . . . . . . . . . . . . . . . . . . . . . . . . . . . . . . . . . . . . . . . . . Crush 9 | . . . . . . . 3 . . . . . . . . . . . . . . 2 1 . . . . . . 1 . . . . 1 . . . 1 . . Escape Stasis 22 | . . . . . . 10 . 6 . 4 . . . . . . . . . . . . . . . . . 2 . . . . . . . . . . . . . Rewire 895 | . . . . . . . . . . 1 . 23 . . . . . 287 . . . 6 . . . . . 15 . 73 . 17 . 79 . 158 . 196 . 39 1 Trap . | . . . . . . . . . . . . . . . . . . . . . . . . . . . . . . . . . . . . . . . . . . Miscellaneous 27 | . . . . . . . . . . . . . . 8 . . . 16 . . 3 . . . . . . . . . . . . . . . . . . . . Route ------- -11/Scrapyard -10/Materials (discovered 6 exits: *Mat x3 / [*Min x2] / [*Sub]) -10/Mines (discovered 2 exits: *Mat x2) -9/Materials (discovered 4 exits: *Mat x3 / [*Min]) -9/Mines (discovered 2 exits: *Mat x2) -8/Materials (discovered 4 exits: *Fac x3 / Gar) -8/Garrison (discovered 3 exits: *Mat x3) -8/Materials (discovered 2 exits: *Fac / Gar) -8/Garrison (discovered 3 exits: *Fac x3) -7/Factory (discovered 2 exits: *Fac / Gar) -7/Garrison (discovered 4 exits: *Sto x4) -7/Storage -7/Garrison (discovered 3 exits: *Fac x3) -6/Factory (discovered 3 exits: Low x2 / Gar) -6/Garrison (discovered 3 exits: *Fac x3) -5/Factory -5/Waste -5/Factory (discovered 6 exits: *Fac x2 / Upp x2 / *Ext x2) -5/Extension (discovered 2 exits: *Fac / *Cet) -5/Cetus (discovered 2 exits: *Fac / [*Arc]) -5/Archives (discovered 2 exits: *Hub x2) -5/Hub_04(d) -5/Garrison (discovered 3 exits: *Fac x3) -4/Factory (discovered 3 exits: Upp x2 / Arm) -4/Waste -4/Factory (discovered 2 exits: *Upp / Gar) -4/Garrison (discovered 3 exits: *Fac x3) -4/Factory (discovered 4 exits: Upp x2 / Arm / Gar) -4/Garrison (discovered 4 exits: *Res x3 / *Fac) -4/Factory (discovered 3 exits: *Res / Arm / Gar) -4/Garrison (discovered 3 exits: *Res x3) -3/Research (discovered 2 exits: *Res / Gar) -3/Garrison (discovered 3 exits: *Res x3) -3/Research -3/Garrison (discovered 4 exits: *Res x3 / *Res) -3/Research (discovered 2 exits: [*Tes] / Gar) -3/Garrison (discovered 3 exits: *Res x3) -2/Research (discovered 2 exits: *Acc / Gar) -2/Garrison (discovered 4 exits: *Acc x3 / *Res) -2/Research -2/Garrison (discovered 3 exits: *Acc x3) -1/Access To Epsilon Eridani History --------- Turn | Location | Event 10 | -11/Scrapyard | Discovered new exit (range 14) 96 | -11/Scrapyard | Entered Materials 303 | -10/Materials | Build established: Mutant 492 | -10/Materials | Discovered new exit (range 6) 977 | -10/Materials | Discovered new exit (range 9) 991 | -10/Materials | Discovered new exit (range 14) 1268 | -10/Materials | Discovered new exit (range 15) 1277 | -10/Materials | Discovered new exit (range 8) 1603 | -10/Materials | Discovered new exit (range 15) 1630 | -10/Materials | Central database locked down 1706 | -10/Materials | Entered Mines 1707 | -10/Mines | Learned location of Storage (-7) 1883 | -10/Mines | Learned Materials emergency access door positions 2184 | -10/Mines | Discovered new exit (range 11) 2199 | -10/Mines | Core integrity fell below 50% 2205 | -10/Mines | Destroyed YI-UF0 2235 | -10/Mines | Lost 4 parts (1p1n2w) 2633 | -10/Mines | Deemed a non-threat by the Exiles lab entrance 2715 | -10/Mines | Discovered new exit (range 9) 2733 | -10/Mines | Entered Materials 2733 | -9/Materials | Evolved 2 slots: Propulsion x1, Utility x1 3347 | -9/Materials | Discovered new exit (range 14) 3942 | -9/Materials | Repaired Huge Storage Unit 4125 | -9/Materials | Discovered new exit (range 7) 4485 | -9/Materials | Central database locked down 5119 | -9/Materials | Repaired Lgt. Armor Plating 5132 | -9/Materials | Identified exit to Materials 5171 | -9/Materials | Repaired Imp. Assault Rifle 5230 | -9/Materials | Learned Materials stockpile data 5261 | -9/Materials | Learned location of 2 exits from Materials 5294 | -9/Materials | Learned location of 1 exit from Recycling 5307 | -9/Materials | Learned Storage trap positions 5365 | -9/Materials | Learned Storage trap positions 5412 | -9/Materials | Learned Storage trap positions 5500 | -9/Materials | Entered Mines 5546 | -9/Mines | A weapon hastily lodged in a ceiling crevice suddenly fell to the ground 5668 | -9/Mines | Discovered exit to Materials (range 12) 5787 | -9/Mines | Assembled infested the area 6072 | -9/Mines | Found a hidden stash of uninstalled traps 6254 | -9/Mines | Assisted by bots powering up and referring to "LRC-V3" 6370 | -9/Mines | Received a Rocket Launcher from a helpful Derelict 6464 | -9/Mines | Entered Materials 6464 | -8/Materials | Accompanied by 3 allies 6464 | -8/Materials | Evolved 2 slots: Utility x1, Weapon x1 6465 | -8/Materials | Identified exit to Factory 6772 | -8/Materials | Build established: Tank 8093 | -8/Materials | Garrison activated, responded to threat 8154 | -8/Materials | Discovered exit to Factory (range 15) 8178 | -8/Materials | Identified exit to Garrison 8178 | -8/Materials | Entered Garrison 8214 | -8/Garrison | Triggered checkpoint 8285 | -8/Garrison | Garrison Relay disabled 8788 | -8/Garrison | Triggered checkpoint 8789 | -8/Garrison | Triggered checkpoint 8861 | -8/Garrison | Destroyed 10 combat bots 8874 | -8/Garrison | Triggered checkpoint 8969 | -8/Garrison | Discovered new exit (range 12) 9066 | -8/Garrison | Triggered checkpoint 9191 | -8/Garrison | Installed Relay Interface Framework 9310 | -8/Garrison | Identified exit to Materials 9332 | -8/Garrison | Build established: Scavenger-Gunner 9410 | -8/Garrison | Triggered checkpoint 9570 | -8/Garrison | Discovered exit to Materials (range 13) 9965 | -8/Garrison | Discovered exit to Materials (range 12) 10018 | -8/Garrison | Entered Materials 10418 | -8/Materials | First assault squad dispatched 10560 | -8/Materials | Discovered exit to Factory (range 12) 10590 | -8/Materials | Destroyed 12 combat bots 10595 | -8/Materials | Lost 4 parts (2n1u1w) 11048 | -8/Materials | Repaired Imp. Grenade Launcher 11201 | -8/Materials | Identified exit to Garrison 11201 | -8/Materials | Entered Garrison 11257 | -8/Garrison | Expanded RIF knowledge: Threat Obfuscation 11505 | -8/Garrison | Triggered checkpoint 11544 | -8/Garrison | Core integrity fell below 50% 11578 | -8/Garrison | Lost 3 parts (1p2u) 11868 | -8/Garrison | Lost 3 parts (3n) 11919 | -8/Garrison | Triggered checkpoint 12094 | -8/Garrison | Rescued a captive Derelict 12094 | -8/Garrison | Rescued a captive Derelict 12130 | -8/Garrison | Build established: Gunner 12247 | -8/Garrison | Discovered exit to Factory (range 13) 12542 | -8/Garrison | Discovered exit to Factory (range 15) 12584 | -8/Garrison | Learned Factory security intel 12655 | -8/Garrison | Triggered checkpoint 12671 | -8/Garrison | Core integrity fell below 20% 12751 | -8/Garrison | Build established: Scavenger-Gunner 12923 | -8/Garrison | Triggered checkpoint 12959 | -8/Garrison | Discovered exit to Factory (range 18) 12959 | -8/Garrison | Discovered exit to Factory (range 76) 12959 | -8/Garrison | Discovered exit to Factory (range 91) 13055 | -8/Garrison | Entered Factory 13055 | -7/Factory | Evolved 2 slots: Propulsion x1, Utility x1 13378 | -7/Factory | Discovered new exit (range 16) 13455 | -7/Factory | First assault squad dispatched 13551 | -7/Factory | Build established: Gunner 13707 | -7/Factory | P-60 Hacker assimilated allied Administrator 4a 13908 | -7/Factory | Identified exit to Garrison 13912 | -7/Factory | Entered Garrison 14082 | -7/Garrison | Build established: Mutant 14306 | -7/Garrison | Triggered checkpoint 14378 | -7/Garrison | Triggered checkpoint 14513 | -7/Garrison | Discovered new exit (range 15) 14838 | -7/Garrison | Triggered checkpoint 14893 | -7/Garrison | Build established: Scavenger-Gunner 14945 | -7/Garrison | Triggered checkpoint 15035 | -7/Garrison | Expanded RIF knowledge: Patrol Navigation 15066 | -7/Garrison | Garrison Relay disabled 15152 | -7/Garrison | Identified exit to Storage 15307 | -7/Garrison | Build established: Gunner 15372 | -7/Garrison | Triggered checkpoint 15510 | -7/Garrison | Triggered checkpoint 15551 | -7/Garrison | Discovered exit to Storage (range 6) 15578 | -7/Garrison | Discovered exit to Storage (range 10) 16110 | -7/Garrison | Discovered exit to Storage (range 9) 16197 | -7/Garrison | Entered Storage 16197 | -7/Storage | Accompanied by 2 allies 16198 | -7/Storage | Loaded intel: 16 trap records 16281 | -7/Storage | Build established: Scavenger-Tank 16347 | -7/Storage | Assisted by bots powering up and referring to "LRC-V3" 16455 | -7/Storage | Found Prototype Launcher 16455 | -7/Storage | Identified Rocket Array 16465 | -7/Storage | Found Rocket Array 16629 | -7/Storage | Identified exit to Garrison 16629 | -7/Storage | Entered Garrison 16629 | -7/Garrison | Accompanied by 7 allies 16665 | -7/Garrison | Lost 5 allies 16711 | -7/Garrison | Triggered checkpoint 16819 | -7/Garrison | Garrison Relay disabled 16889 | -7/Garrison | Triggered checkpoint 16913 | -7/Garrison | Destroyed 7 combat bots 16979 | -7/Garrison | Discovered new exit (range 12) 16992 | -7/Garrison | Expanded RIF knowledge: Hotswap 17137 | -7/Garrison | Triggered checkpoint 17250 | -7/Garrison | Discovered new exit (range 10) 17375 | -7/Garrison | Triggered checkpoint 17595 | -7/Garrison | Triggered checkpoint 17679 | -7/Garrison | Discovered new exit (range 10) 17723 | -7/Garrison | Triggered checkpoint 18231 | -7/Garrison | Triggered checkpoint 18262 | -7/Garrison | Garrison Relay disabled 18311 | -7/Garrison | Entered Factory 18311 | -6/Factory | Accompanied by 3 allies 18311 | -6/Factory | Evolved 2 slots: Utility x1, Weapon x1 18597 | -6/Factory | Identified exit to Lower Caves 18905 | -6/Factory | Garrison activated, responded to threat 19030 | -6/Factory | Identified exit to Garrison 19057 | -6/Factory | Entered Garrison 19072 | -6/Garrison | Expanded RIF knowledge: Autoassimilate 19192 | -6/Garrison | Found Gamma Bomb Array 19321 | -6/Garrison | Triggered checkpoint 19380 | -6/Garrison | Garrison Relay disabled 19414 | -6/Garrison | Spotted B-75 Beast 19456 | -6/Garrison | Destroyed B-75 Beast 19488 | -6/Garrison | Destroyed 7 combat bots 19492 | -6/Garrison | Lost 3 parts (1n1u1w) 19660 | -6/Garrison | Triggered checkpoint 19720 | -6/Garrison | Discovered new exit (range 10) 19756 | -6/Garrison | Triggered checkpoint 19829 | -6/Garrison | Garrison Relay disabled 19962 | -6/Garrison | Triggered checkpoint 20079 | -6/Garrison | Discovered new exit (range 15) 20177 | -6/Garrison | Triggered checkpoint 20243 | -6/Garrison | Garrison Relay disabled 20398 | -6/Garrison | Triggered checkpoint 20879 | -6/Garrison | Found embedded Infiltrators 20907 | -6/Garrison | Triggered checkpoint 21005 | -6/Garrison | Discovered new exit (range 15) 21119 | -6/Garrison | Rescued a captive Derelict 21121 | -6/Garrison | Rescued a captive Derelict 21151 | -6/Garrison | Expanded RIF knowledge: Code Merge 21215 | -6/Garrison | Entered Factory 21215 | -5/Factory | Accompanied by 4 allies 21215 | -5/Factory | Evolved 2 slots: Propulsion x1, Utility x1 21273 | -5/Factory | Lost 3 allies 21515 | -5/Factory | First assault squad dispatched 21525 | -5/Factory | Discovered new exit (range 14) 21825 | -5/Factory | Build established: Bothacker-Gunner 21983 | -5/Factory | Garrison activated, responded to threat 22337 | -5/Factory | Sucked down chute 22337 | -5/Factory | Entered Waste 22338 | -5/Waste | Met a frightened Derelict 22350 | -5/Waste | Spotted C-40 Crusher 22360 | -5/Waste | Destroyed C-40 Crusher 22377 | -5/Waste | Found Damper Plating 22399 | -5/Waste | Spotted C-40 Crusher 22400 | -5/Waste | Destroyed C-40 Crusher 22415 | -5/Waste | Spotted C-40 Crusher 22436 | -5/Waste | Destroyed C-40 Crusher 22466 | -5/Waste | Found Damper Plating 22490 | -5/Waste | Spotted C-40 Crusher 22506 | -5/Waste | Destroyed C-40 Crusher 22530 | -5/Waste | Spotted C-40 Crusher 22551 | -5/Waste | Destroyed C-40 Crusher 22657 | -5/Waste | Spotted C-40 Crusher 22671 | -5/Waste | Destroyed C-40 Crusher 22678 | -5/Waste | Found Damper Plating 22698 | -5/Waste | Build established: Scavenger-Tank 22751 | -5/Waste | Discovered new exit (range 16) 22861 | -5/Waste | Entered Factory 23216 | -5/Factory | Destroyed 8 combat bots 24171 | -5/Factory | Discovered new exit (range 15) 24433 | -5/Factory | Discovered new exit (range 15) 24961 | -5/Factory | First assault squad dispatched 25080 | -5/Factory | Cargo convoy interrupted 25248 | -5/Factory | Identified exit to Upper Caves 25248 | -5/Factory | Identified exit to Extension 25653 | -5/Factory | Found Prototype Device 25653 | -5/Factory | Identified Exp. Actuator Array 25690 | -5/Factory | Found Prototype Launcher 25690 | -5/Factory | Identified Enh. Gamma Bomb Array 25707 | -5/Factory | Found Prototype Device 25707 | -5/Factory | Identified Exp. Focal Shield 25980 | -5/Factory | Watched by a mysterious "MATRIX" hacker. 26388 | -5/Factory | System corruption reached 10% 26440 | -5/Factory | Lost 4 parts (2u2w) 26736 | -5/Factory | Repaired Imp. Heavy Armor Plating 26855 | -5/Factory | Entered Extension 27155 | -5/Extension | First assault squad dispatched 27344 | -5/Extension | Destroyed 9 combat bots 27939 | -5/Extension | Rescued a captive Derelict 28095 | -5/Extension | Build established: Commander-Tank 28113 | -5/Extension | Rescued a captive Derelict 28113 | -5/Extension | Rescued a captive Derelict 28413 | -5/Extension | Lost 3 allies 28439 | -5/Extension | Spotted B-75 Beast 28459 | -5/Extension | Allies destroyed B-75 Beast 28466 | -5/Extension | Spotted B-75 Beast 28492 | -5/Extension | Destroyed B-75 Beast 28507 | -5/Extension | Lost 14 allies 28513 | -5/Extension | Destroyed 7 combat bots 28521 | -5/Extension | Lost 4 parts (1n3u) 28768 | -5/Extension | Build established: Scavenger-Tank 28824 | -5/Extension | Lost 3 allies 28842 | -5/Extension | Rescued A7 29055 | -5/Extension | Lost 5 allies 29085 | -5/Extension | Destroyed 10 combat bots 29182 | -5/Extension | Found Prototype Protection 29182 | -5/Extension | Identified Med. Regenerative Plating 29247 | -5/Extension | Discovered new exit (range 10) 29249 | -5/Extension | Discovered new exit (range 6) 29275 | -5/Extension | Entered Cetus 29275 | -5/Cetus | Accompanied by 2 allies (A7) 29280 | -5/Cetus | Acquired a Cetus Manufacturing Module code from A7 29286 | -5/Cetus | Spotted Cetus Guard 29286 | -5/Cetus | Spotted Cetus Guard 29295 | -5/Cetus | Spotted Cetus Guard 29298 | -5/Cetus | Destroyed Cetus Guard 29299 | -5/Cetus | Allies destroyed Cetus Guard 29303 | -5/Cetus | Destroyed Cetus Guard 29450 | -5/Cetus | Started Cetus Manufacturing Module 29461 | -5/Cetus | Escorted A7 to Cetus Mainframe 29475 | -5/Cetus | Manufactured an Enhanced Grunt 29487 | -5/Cetus | Discovered new exit (range 15) 29500 | -5/Cetus | Manufactured an Enhanced Grunt 29525 | -5/Cetus | Manufactured an Enhanced Grunt 29550 | -5/Cetus | Manufactured an Enhanced Grunt 29575 | -5/Cetus | Manufactured an Enhanced Grunt 29611 | -5/Cetus | Spotted Cetus Guard 29611 | -5/Cetus | Spotted Cetus Guard 29615 | -5/Cetus | Spotted Cetus Guard 29616 | -5/Cetus | Destroyed Cetus Guard 29616 | -5/Cetus | Spotted Cetus Guard 29622 | -5/Cetus | Allies destroyed Cetus Guard 29629 | -5/Cetus | Allies destroyed Cetus Guard 29632 | -5/Cetus | Allies destroyed Cetus Guard 29641 | -5/Cetus | Discovered new exit (range 15) 29651 | -5/Cetus | Met Revision 17 29687 | -5/Cetus | Found Prototype Device 29687 | -5/Cetus | Identified Exp. Thermal Shield 29744 | -5/Cetus | Entered Archives 29744 | -5/Archives | Accompanied by 5 allies (A7) 29749 | -5/Archives | Received a hacking code to weaken MAIN.C 29846 | -5/Archives | Discovered new exit (range 16) 30049 | -5/Archives | Discovered new exit (range 16) 30081 | -5/Archives | Entered Hub_04(d) 30081 | -5/Hub_04(d) | Accompanied by 3 allies 30377 | -5/Hub_04(d) | Network Hub disabled 31049 | -5/Hub_04(d) | Spotted Lightning 31050 | -5/Hub_04(d) | Spotted Lightning 31051 | -5/Hub_04(d) | Spotted Lightning 31079 | -5/Hub_04(d) | Destroyed Lightning 31090 | -5/Hub_04(d) | Destroyed Lightning 31110 | -5/Hub_04(d) | Spotted B-75 Beast 31135 | -5/Hub_04(d) | Destroyed Lightning 31159 | -5/Hub_04(d) | Destroyed 10 combat bots 31166 | -5/Hub_04(d) | Destroyed B-75 Beast 31201 | -5/Hub_04(d) | Found Prototype Device 31201 | -5/Hub_04(d) | Identified Exp. Phase Shifter 31249 | -5/Hub_04(d) | Found Prototype Processor 31249 | -5/Hub_04(d) | Identified Exp. Targeting Computer 31265 | -5/Hub_04(d) | Found Prototype Device 31265 | -5/Hub_04(d) | Identified Exp. EM Shield 31301 | -5/Hub_04(d) | Found Exp. Phase Shifter 31420 | -5/Hub_04(d) | Identified exit to Garrison 31420 | -5/Hub_04(d) | Entered Garrison 31698 | -5/Garrison | Triggered checkpoint 31761 | -5/Garrison | Garrison Relay disabled 31991 | -5/Garrison | Spotted B-75 Beast 32008 | -5/Garrison | Triggered checkpoint 32078 | -5/Garrison | Destroyed B-75 Beast 32250 | -5/Garrison | Discovered new exit (range 10) 32291 | -5/Garrison | Triggered checkpoint 32366 | -5/Garrison | Discovered new exit (range 24) 32366 | -5/Garrison | Discovered new exit (range 70) 32366 | -5/Garrison | Discovered new exit (range 74) 32400 | -5/Garrison | Rewired Striker 32526 | -5/Garrison | Triggered checkpoint 32585 | -5/Garrison | Expanded RIF knowledge: Threat Obfuscation 32601 | -5/Garrison | Garrison Relay disabled 32749 | -5/Garrison | Garrison Relay disabled 32804 | -5/Garrison | Triggered checkpoint 32876 | -5/Garrison | Garrison Relay disabled 33030 | -5/Garrison | Triggered checkpoint 33229 | -5/Garrison | Spotted B-75 Beast 33244 | -5/Garrison | Garrison Relay disabled 33248 | -5/Garrison | Allies destroyed B-75 Beast 33467 | -5/Garrison | Entered Factory 33467 | -4/Factory | Accompanied by 1 ally 33467 | -4/Factory | Evolved 2 slots: Power x1, Propulsion x1 33509 | -4/Factory | Spotted B-86 Titan 33617 | -4/Factory | Unchained authorized (BL-1NK) 33709 | -4/Factory | Discovered new exit (range 45) 33967 | -4/Factory | First assault squad dispatched 34195 | -4/Factory | Destroyed BL-1NK 34410 | -4/Factory | Lost 4 parts (1p1u2w) 34631 | -4/Factory | Identified exit to Upper Caves 34631 | -4/Factory | Identified exit to Armory 34772 | -4/Factory | Spotted B-86 Titan 34787 | -4/Factory | Sucked down chute 34787 | -4/Factory | Entered Waste 34802 | -4/Waste | EMP discharged 34824 | -4/Waste | Spotted C-40 Crusher 34829 | -4/Waste | Spotted C-40 Crusher 34845 | -4/Waste | Spotted C-40 Crusher 34867 | -4/Waste | Spotted C-40 Crusher 34887 | -4/Waste | Spotted C-40 Crusher 34896 | -4/Waste | Destroyed C-40 Crusher 34902 | -4/Waste | EMP discharged 34916 | -4/Waste | Destroyed C-40 Crusher 34916 | -4/Waste | Spotted C-40 Crusher 34948 | -4/Waste | Found Damper Plating 35002 | -4/Waste | EMP discharged 35040 | -4/Waste | Destroyed C-40 Crusher 35066 | -4/Waste | Destroyed C-40 Crusher 35102 | -4/Waste | EMP discharged 35114 | -4/Waste | Destroyed C-40 Crusher 35195 | -4/Waste | Discovered new exit (range 12) 35202 | -4/Waste | EMP discharged 35274 | -4/Waste | Destroyed C-40 Crusher 35302 | -4/Waste | EMP discharged 35302 | -4/Waste | System corruption reached 10% 35365 | -4/Waste | Entered Factory 35458 | -4/Factory | Discovered exit to Upper Caves (range 12) 35664 | -4/Factory | Destroyed 7 combat bots 35683 | -4/Factory | Garrison activated, responded to threat 35759 | -4/Factory | Identified exit to Garrison 35759 | -4/Factory | Entered Garrison 35829 | -4/Garrison | Triggered checkpoint 35878 | -4/Garrison | Garrison Relay disabled 36034 | -4/Garrison | Expanded RIF knowledge: Watcher Feeds 36061 | -4/Garrison | Spotted B-86 Titan 36103 | -4/Garrison | Destroyed B-86 Titan 36154 | -4/Garrison | Found Unknown Device 36154 | -4/Garrison | Identified Adv. Force Booster 36328 | -4/Garrison | Triggered checkpoint 36436 | -4/Garrison | Discovered new exit (range 9) 36535 | -4/Garrison | Triggered checkpoint 36583 | -4/Garrison | Garrison Relay disabled 36669 | -4/Garrison | Triggered checkpoint 36705 | -4/Garrison | Destroyed 7 combat bots 36793 | -4/Garrison | Discovered new exit (range 13) 36807 | -4/Garrison | Build established: Bothacker-Tank 36865 | -4/Garrison | Triggered checkpoint 37015 | -4/Garrison | Garrison Relay disabled 37269 | -4/Garrison | Triggered checkpoint 37278 | -4/Garrison | Spotted Striker 37278 | -4/Garrison | Spotted Striker 37291 | -4/Garrison | Build established: Scavenger-Tank 37341 | -4/Garrison | Discovered new exit (range 5) 37492 | -4/Garrison | Identified exit to Factory 37598 | -4/Garrison | Entered Factory 37838 | -4/Factory | P-70 Sage assimilated allied Sentinel 7b 37898 | -4/Factory | Allied Derelicts emerged from ambush trap array 38118 | -4/Factory | Identified exit to Garrison 38120 | -4/Factory | Entered Garrison 38138 | -4/Garrison | Spotted Striker 38151 | -4/Garrison | Destroyed Striker 38171 | -4/Garrison | Spotted Striker 38198 | -4/Garrison | Destroyed Striker 38223 | -4/Garrison | Rewired Striker 38296 | -4/Garrison | Triggered checkpoint 38378 | -4/Garrison | Garrison Relay disabled 38634 | -4/Garrison | Spotted B-86 Titan 38657 | -4/Garrison | Destroyed B-86 Titan 38693 | -4/Garrison | Triggered checkpoint 38748 | -4/Garrison | Triggered checkpoint 38831 | -4/Garrison | Triggered checkpoint 38923 | -4/Garrison | Discovered new exit (range 11) 38926 | -4/Garrison | Spotted B-86 Titan 38932 | -4/Garrison | Rewired B-75 Beast 38936 | -4/Garrison | Rewired B-75 Beast 38972 | -4/Garrison | Allies destroyed B-86 Titan 39165 | -4/Garrison | Identified exit to Research 39483 | -4/Garrison | Triggered checkpoint 39537 | -4/Garrison | Garrison Relay disabled 39575 | -4/Garrison | Discovered exit to Research (range 12) 39718 | -4/Garrison | Rescued a captive Derelict 39818 | -4/Garrison | Triggered checkpoint 39886 | -4/Garrison | Discovered exit to Research (range 5) 39946 | -4/Garrison | Triggered checkpoint 39989 | -4/Garrison | Discovered new exit (range 5) 40013 | -4/Garrison | Entered Factory 40013 | -4/Factory | Accompanied by 3 allies 40145 | -4/Factory | Discovered exit to Research (range 9) 40582 | -4/Factory | Discovered exit to Armory (range 86) 41373 | -4/Factory | Identified exit to Garrison 41373 | -4/Factory | Entered Garrison 41462 | -4/Garrison | Destroyed 8 combat bots 41512 | -4/Garrison | Learned Research security intel 41609 | -4/Garrison | Triggered checkpoint 41653 | -4/Garrison | Triggered checkpoint 41683 | -4/Garrison | Triggered checkpoint 41783 | -4/Garrison | Garrison Relay disabled 41959 | -4/Garrison | Triggered checkpoint 41962 | -4/Garrison | Spotted B-86 Titan 41963 | -4/Garrison | Triggered checkpoint 42001 | -4/Garrison | Destroyed B-86 Titan 42002 | -4/Garrison | Lost 3 parts (1p1n1u) 42057 | -4/Garrison | Triggered checkpoint 42074 | -4/Garrison | Found Hvy. Reflective Plating 42085 | -4/Garrison | Destroyed 7 combat bots 42139 | -4/Garrison | Triggered checkpoint 42213 | -4/Garrison | Rescued a captive Derelict 42255 | -4/Garrison | Garrison Relay disabled 42285 | -4/Garrison | Discovered exit to Research (range 12) 42507 | -4/Garrison | Triggered checkpoint 42921 | -4/Garrison | Triggered checkpoint 42955 | -4/Garrison | Spotted B-86 Titan 43020 | -4/Garrison | Lost 4 allies 43025 | -4/Garrison | Destroyed B-86 Titan 43200 | -4/Garrison | Discovered exit to Research (range 14) 43231 | -4/Garrison | Phase Generator disabled 43447 | -4/Garrison | Discovered exit to Research (range 12) 43460 | -4/Garrison | Expanded RIF knowledge: Structural Interface 43590 | -4/Garrison | Triggered checkpoint 43625 | -4/Garrison | Garrison Relay disabled 43799 | -4/Garrison | Entered Research 43799 | -3/Research | Evolved 2 slots: Power x1, Utility x1 43858 | -3/Research | Identified exit to Garrison 43999 | -3/Research | Revision forces began assault on 0b10 44016 | -3/Research | Met up with Revision 17++ 44179 | -3/Research | Found Prototype Processor 44179 | -3/Research | Identified Exp. Signal Interpreter 44285 | -3/Research | Discovered new exit (range 6) 44354 | -3/Research | Lost 3 allies 44499 | -3/Research | Research terminal network offline 44883 | -3/Research | Spotted Striker 44905 | -3/Research | Destroyed Striker 44916 | -3/Research | Lost 3 allies 45360 | -3/Research | Spotted Striker 45368 | -3/Research | Destroyed Striker 45915 | -3/Research | Identified exit to Garrison 45915 | -3/Research | Entered Garrison 46074 | -3/Garrison | Triggered checkpoint 46125 | -3/Garrison | Triggered checkpoint 46159 | -3/Garrison | Garrison Relay disabled 46440 | -3/Garrison | Triggered checkpoint 46525 | -3/Garrison | Triggered checkpoint 46640 | -3/Garrison | Triggered checkpoint 46683 | -3/Garrison | Triggered checkpoint 46731 | -3/Garrison | Garrison Relay disabled 46906 | -3/Garrison | Discovered new exit (range 11) 46928 | -3/Garrison | Identified exit to Research 46967 | -3/Garrison | Triggered checkpoint 47044 | -3/Garrison | Build established: Tank 47050 | -3/Garrison | Garrison Relay disabled 47181 | -3/Garrison | Discovered exit to Research (range 15) 47236 | -3/Garrison | Expanded RIF knowledge: Threat Obfuscation 47287 | -3/Garrison | Triggered checkpoint 47469 | -3/Garrison | Triggered checkpoint 47754 | -3/Garrison | Discovered exit to Research (range 15) 47831 | -3/Garrison | Entered Research 47867 | -3/Research | Build established: Scavenger-Tank 47917 | -3/Research | Found Prototype Device 47919 | -3/Research | Identified Adv. EM Shield 48331 | -3/Research | First assault squad dispatched 48341 | -3/Research | Build established: Tank 48504 | -3/Research | Identified exit to Garrison 48504 | -3/Research | Entered Garrison 48602 | -3/Garrison | Triggered checkpoint 48688 | -3/Garrison | Garrison Relay disabled 48780 | -3/Garrison | Spotted Executioner 48780 | -3/Garrison | Spotted Executioner 48793 | -3/Garrison | Destroyed Executioner 48806 | -3/Garrison | Destroyed Executioner 48847 | -3/Garrison | Found Prototype Processor 48847 | -3/Garrison | Identified Exp. Core Analyzer 48953 | -3/Garrison | Rewired Executioner 48958 | -3/Garrison | Rewired Executioner 48988 | -3/Garrison | Spotted B-86 Titan 49027 | -3/Garrison | Destroyed B-86 Titan 49095 | -3/Garrison | Found Prototype Device 49095 | -3/Garrison | Identified Adv. Kinecellerator 49103 | -3/Garrison | Destroyed 14 combat bots 49118 | -3/Garrison | Found Exp. Core Analyzer 49159 | -3/Garrison | Found Adv. Kinecellerator 49242 | -3/Garrison | Expanded RIF knowledge: Autooverride 49285 | -3/Garrison | Discovered new exit (range 15) 49309 | -3/Garrison | Identified exit to Research 49369 | -3/Garrison | Build established: Scavenger-Gunner 49414 | -3/Garrison | Triggered checkpoint 49474 | -3/Garrison | Triggered checkpoint 49522 | -3/Garrison | Garrison Relay disabled 49563 | -3/Garrison | Discovered exit to Research (range 7) 49627 | -3/Garrison | Triggered checkpoint 49712 | -3/Garrison | Found embedded Infiltrators 49733 | -3/Garrison | Triggered checkpoint 49766 | -3/Garrison | Triggered checkpoint 49807 | -3/Garrison | Discovered new exit (range 3) 50005 | -3/Garrison | Discovered exit to Research (range 10) 50110 | -3/Garrison | Entered Research 50110 | -3/Research | Accompanied by 1 ally 50391 | -3/Research | Discovered new exit (range 11) 50445 | -3/Research | Build established: Scavenger-Tank 50449 | -3/Research | Lost 3 allies 50833 | -3/Research | System corruption reached 10% 50998 | -3/Research | Identified exit to Garrison 50998 | -3/Research | Entered Garrison 51021 | -3/Garrison | Learned Research security intel 51114 | -3/Garrison | Triggered checkpoint 51226 | -3/Garrison | Lost 3 parts (2u1w) 51458 | -3/Garrison | Garrison Relay disabled 51488 | -3/Garrison | Expanded RIF knowledge: Command Fork 51535 | -3/Garrison | Triggered checkpoint 51536 | -3/Garrison | Triggered checkpoint 51547 | -3/Garrison | Spotted B-86 Titan 51549 | -3/Garrison | Triggered checkpoint 51566 | -3/Garrison | Destroyed B-86 Titan 51594 | -3/Garrison | Lost 12 allies 51596 | -3/Garrison | Triggered checkpoint 51638 | -3/Garrison | Destroyed 12 combat bots 51723 | -3/Garrison | Destroyed 9 combat bots 51792 | -3/Garrison | Rewired Executioner 51799 | -3/Garrison | Rewired Executioner 51862 | -3/Garrison | Triggered checkpoint 52194 | -3/Garrison | Discovered exit to Research (range 8) 52253 | -3/Garrison | Expanded RIF knowledge: Code Merge 52325 | -3/Garrison | Garrison Relay disabled 52358 | -3/Garrison | Garrison Relay disabled 52534 | -3/Garrison | Discovered exit to Research (range 10) 52901 | -3/Garrison | Discovered exit to Research (range 98) 52901 | -3/Garrison | Discovered exit to Research (range 17) 52901 | -3/Garrison | Discovered exit to Research (range 67) 52935 | -3/Garrison | Entered Research 52935 | -2/Research | Accompanied by 1 ally 52935 | -2/Research | Evolved 2 slots: Utility x2 53014 | -2/Research | Found Prototype Processor 53022 | -2/Research | Identified Spectral Analyzer 53047 | -2/Research | Discovered new exit (range 11) 53254 | -2/Research | Spotted B-90 Cyclops 53357 | -2/Research | Found Corrupted Adv. Kinecellerator 53697 | -2/Research | Garrison activated, responded to threat 53750 | -2/Research | Destroyed 7 combat bots 53797 | -2/Research | Identified exit to Garrison 53797 | -2/Research | Entered Garrison 53828 | -2/Garrison | Lost 5 parts (3n1u1w) 53860 | -2/Garrison | Found Relay Coupler [Proto] 53864 | -2/Garrison | Found Relay Coupler [Proto] 53867 | -2/Garrison | Found Relay Coupler [Proto] 53871 | -2/Garrison | Found Relay Coupler [Proto] 54054 | -2/Garrison | Garrison Relay disabled 54113 | -2/Garrison | Triggered checkpoint 54196 | -2/Garrison | Build established: Botlord-Tank 54568 | -2/Garrison | Lost 6 allies 54653 | -2/Garrison | System corruption reached 10% 54689 | -2/Garrison | Spotted B-90 Cyclops 54729 | -2/Garrison | Destroyed B-90 Cyclops 54753 | -2/Garrison | Found Unknown Device 54753 | -2/Garrison | Identified Quantum Capacitor 54915 | -2/Garrison | Destroyed 7 combat bots 54968 | -2/Garrison | Garrison Relay disabled 54997 | -2/Garrison | Triggered checkpoint 55005 | -2/Garrison | Discovered new exit (range 12) 55027 | -2/Garrison | Identified exit to Access 55207 | -2/Garrison | Triggered checkpoint 55443 | -2/Garrison | Triggered checkpoint 55503 | -2/Garrison | Triggered checkpoint 55579 | -2/Garrison | Lost 6 allies 55658 | -2/Garrison | Discovered new exit (range 3) 55805 | -2/Garrison | Garrison Relay disabled 55963 | -2/Garrison | Discovered exit to Access (range 11) 55970 | -2/Garrison | Spotted Executioner 55970 | -2/Garrison | Spotted Executioner 56015 | -2/Garrison | Assimilated Executioner with formatsys_high 56015 | -2/Garrison | Assimilated Executioner with formatsys_high 56022 | -2/Garrison | Rewired Executioner 56147 | -2/Garrison | Triggered checkpoint 56235 | -2/Garrison | Triggered checkpoint 56297 | -2/Garrison | Build established: Scavenger-Tank 56297 | -2/Garrison | Discovered exit to Access (range 14) 56385 | -2/Garrison | Lost 4 allies 56465 | -2/Garrison | Expanded RIF knowledge: Robot Detection 56483 | -2/Garrison | Found Exp. Core Analyzer 56491 | -2/Garrison | Found Corrupted Adv. Kinecellerator 56731 | -2/Garrison | Entered Research 57079 | -2/Research | Identified exit to Garrison 57274 | -2/Research | Entered Garrison 57274 | -2/Garrison | Accompanied by 1 ally 57354 | -2/Garrison | Triggered checkpoint 57368 | -2/Garrison | Garrison Relay disabled 57385 | -2/Garrison | Learned Access security intel 57708 | -2/Garrison | Spotted B-90 Cyclops 57735 | -2/Garrison | Destroyed B-90 Cyclops 57834 | -2/Garrison | Triggered checkpoint 57917 | -2/Garrison | Discovered exit to Access (range 10) 57954 | -2/Garrison | Triggered checkpoint 58231 | -2/Garrison | Garrison Relay disabled 58323 | -2/Garrison | Triggered checkpoint 58501 | -2/Garrison | Expanded RIF knowledge: Program Shield 58519 | -2/Garrison | Discovered exit to Access (range 5) 58544 | -2/Garrison | Triggered checkpoint 58558 | -2/Garrison | Garrison Relay disabled 58720 | -2/Garrison | Triggered checkpoint 58721 | -2/Garrison | Triggered checkpoint 58861 | -2/Garrison | Discovered exit to Access (range 11) 58943 | -2/Garrison | Spotted B-90 Cyclops 58972 | -2/Garrison | Triggered checkpoint 58997 | -2/Garrison | Garrison Relay disabled 59294 | -2/Garrison | Entered Access 59294 | -1/Access | Evolved 2 slots: Utility x2 59431 | -1/Access | Spotted B-99 Colossus 59845 | -1/Access | Build established: Botlord-Tank 60221 | -1/Access | Build established: Botlord-Gunner 60612 | -1/Access | Spotted B-99 Colossus 60687 | -1/Access | Build established: Botlord-Tank 60750 | -1/Access | Unchained authorized (DW-4LL) 60845 | -1/Access | Discovered new exit (range 5) 61155 | -1/Access | DW-4LL burst out of a wall 61159 | -1/Access | Destroyed DW-4LL 61168 | -1/Access | Found Prototype Treads 61168 | -1/Access | Identified DW-4LL's Griptreads 61178 | -1/Access | Found DW-4LL's Griptreads 61189 | -1/Access | Found Prototype Processor 61189 | -1/Access | Identified Exp. Armor Integrity Analyzer 61197 | -1/Access | Found Prototype Protection 61197 | -1/Access | Identified DW-4LL's Blast Wall 61269 | -1/Access | Build established: Scavenger-Tank 61412 | -1/Access | Destroyed B-99 Colossus 61499 | -1/Access | Spotted B-99 Colossus 61555 | -1/Access | Destroyed B-99 Colossus 61584 | -1/Access | Found Hvy. Insulated Plating 61588 | -1/Access | Found Prototype Ballistic Gun 61588 | -1/Access | Identified Multirail 61598 | -1/Access | Found Multirail 62294 | -1/Access | First assault squad dispatched 63250 | -1/Access | Destroyed 8 combat bots 67033 | -1/Access | Sterilization system engaged 67333 | -1/Access | Ambient heat levels rising (+10) 67483 | -1/Access | Ambient heat levels rising (+10) 67633 | -1/Access | Ambient heat levels rising (+10) 67783 | -1/Access | Ambient heat levels rising (+10) 67933 | -1/Access | Ambient heat levels rising (+10) 68083 | -1/Access | Ambient heat levels rising (+10) 68233 | -1/Access | Ambient heat levels rising (+10) 68383 | -1/Access | Ambient heat levels rising (+10) 68533 | -1/Access | Ambient heat levels rising (+10) 68683 | -1/Access | Ambient heat levels rising (+10) 68833 | -1/Access | Ambient heat levels rising (+10) 68983 | -1/Access | Ambient heat levels rising (+10) 68986 | *** | Escaped! Last Messages --------------- 68554_ System corrupted: Heat flow error (+140). 68652_ 45KCQUJ0 WFSG60U